Workbook

Sheet LISTE DES TIREURS
B2: TIR INTER-USINES | C2: ANNÉE | D2: =INDEX('LISTE DES TIREURS'!J$8:J$31,'LISTE DES TIREURS'!K8) -> 2022
F3: =D2 -> 2022
B5: LISTE DES TIREURS | C5: TOUT EN MAJUSCULE
B7: NOM PRÉNOM | C7: AN (1950) | D7: ARME - WAFFE | G7: NOUVEAU NOM DE GROUPE
J8: 2017 | K8: 6
E9: 8 | F9: 1 | G9: INDIVIDUEL | J9: 2018
G10: BIFFE LMB | J10: 2019
E11: 1 | G11: LA BERRA LMB | J11: 2020
G12: LA CHIA LMB | J12: 2021
E13: A | G13: LA DENT DE BROC LMB | J13: 2022
E14: B | G14: LA DENT DE LYS LMB | J14: 2023
E15: C | G15: LA DENT DU BURGO LMB | J15: 2024
G16: LA DENT DU CHAMOIS LMB | J16: 2025
G17: LA HOCHMATT LMB | J17: 2026
G18: LA VUDALLA LMB | J18: 2027
G19: LE COUSIMBERT LMB | J19: 2028
G20: LE KAISEREGG LMB | J20: 2029
G21: LE MOLESON LMB | J21: 2030
G22: LE VANIL CARRE LMB | J22: 2031
G23: LE VANIL DE L'ECRI LMB | J23: 2032
G24: LE VANIL NOIR LMB | J24: 2033
G25: LES GASTLOSEN LMB | J25: 2034
G26: LES MERLAS LMB | J26: 2035
G27: LES PORTES LMB | J27: 2036
G28: POINTE DE PARAY LMB | J28: 2037
G29: DENT DU CHAMOIS LMB | J29: 2038
J30: 2039
J31: 2040
A75: 1 | B75: AKCOELTEKIN NAMIK | C75: 1979 | D75: =INDEX('LISTE DES TIREURS'!E$83:E$85,'LISTE DES TIREURS'!F83) -> F90
A76: 2 | B76: AKROUT SAMIR | C76: 1974 | D76: =INDEX('LISTE DES TIREURS'!E$83:E$85,'LISTE DES TIREURS'!F84) -> F90
A77: 3 | B77: ALTINIER BENOIT | C77: 1983 | D77: =INDEX('LISTE DES TIREURS'!E$83:E$85,'LISTE DES TIREURS'!F85) -> F90
A78: 4 | B78: ANDRE BENJAMIN | C78: 1988 | D78: =INDEX('LISTE DES TIREURS'!E$83:E$85,'LISTE DES TIREURS'!F86) -> F90
A79: 5 | B79: ARIAS JOSE | C79: 1971 | D79: =INDEX('LISTE DES TIREURS'!E$83:E$85,'LISTE DES TIREURS'!F87) -> F90
A80: 6 | B80: ASLAN YUNUS EMRE | C80: 1996 | D80: =INDEX('LISTE DES TIREURS'!E$83:E$85,'LISTE DES TIREURS'!F88) -> F90
A81: 7 | B81: BASSET CHRISTIAN | C81: 1956 | D81: =INDEX('LISTE DES TIREURS'!E$83:E$85,'LISTE DES TIREURS'!F89) -> F57 / M
A82: 8 | B82: BATTEL MERLE | C82: 1986 | D82: =INDEX('LISTE DES TIREURS'!E$83:E$85,'LISTE DES TIREURS'!F90) -> F90
A83: 9 | B83: BAUDOIS JULIEN | C83: 1985 | D83: =INDEX('LISTE DES TIREURS'!E$83:E$85,'LISTE DES TIREURS'!F91) -> F90 | F83: 2
A84: 10 | B84: BEAUD CLAUDE | C84: 1957 | D84: =INDEX('LISTE DES TIREURS'!E$83:E$85,'LISTE DES TIREURS'!F92) -> F90 | E84: F90 | F84: 2
A85: 11 | B85: BENOIT JEAN-ROMAIN | C85: 1970 | D85: =INDEX('LISTE DES TIREURS'!E$83:E$85,'LISTE DES TIREURS'!F93) -> F90 | E85: F57 / M | F85: 2
A86: 12 | B86: BERGER JEAN-PHILIPPE | C86: 1975 | D86: =INDEX('LISTE DES TIREURS'!E$83:E$85,'LISTE DES TIREURS'!F94) -> F90 | F86: 2
A87: 13 | B87: BESIM DEMIRI | C87: 1981 | D87: =INDEX('LISTE DES TIREURS'!E$83:E$85,'LISTE DES TIREURS'!F95) -> F90 | F87: 2
A88: 14 | B88: BLANC MARCEL | C88: 1956 | D88: =INDEX('LISTE DES TIREURS'!E$83:E$85,'LISTE DES TIREURS'!F96) -> F90 | F88: 2
A89: 15 | B89: BOICHAT MICHEL | C89: 1952 | D89: =INDEX('LISTE DES TIREURS'!E$83:E$85,'LISTE DES TIREURS'!F97) -> F90 | F89: 3
A90: 16 | B90: BORCARD GILLES | C90: 0 | D90: =INDEX('LISTE DES TIREURS'!E$83:E$85,'LISTE DES TIREURS'!F98) -> F90 | F90: 2
A91: 17 | B91: CHALABI DAVID | C91: 1996 | D91: =INDEX('LISTE DES TIREURS'!E$83:E$85,'LISTE DES TIREURS'!F99) -> F90 | F91: 2
A92: 18 | B92: CHAMBELLAND ESTEBAN | C92: 1987 | D92: =INDEX('LISTE DES TIREURS'!E$83:E$85,'LISTE DES TIREURS'!F100) -> F90 | F92: 2
A93: 19 | B93: CHATAGNY GAETAN | C93: 1975 | D93: =INDEX('LISTE DES TIREURS'!E$83:E$85,'LISTE DES TIREURS'!F101) -> F90 | F93: 2
A94: 20 | B94: COLLEMICHE GAELLE | C94: 1983 | D94: =INDEX('LISTE DES TIREURS'!E$83:E$85,'LISTE DES TIREURS'!F102) -> F90 | F94: 2
A95: 21 | B95: CORBINELLI GIOVANNI | C95: 1978 | D95: =INDEX('LISTE DES TIREURS'!E$83:E$85,'LISTE DES TIREURS'!F103) -> F90 | F95: 2
A96: 22 | B96: CORBOZ GABRIEL | C96: 1986 | D96: =INDEX('LISTE DES TIREURS'!E$83:E$85,'LISTE DES TIREURS'!F104) -> F90 | F96: 2
A97: 23 | B97: COSTA SEBASTIEN | C97: 1972 | D97: =INDEX('LISTE DES TIREURS'!E$83:E$85,'LISTE DES TIREURS'!F105) -> F90 | F97: 2
A98: 24 | B98: COUSIN ANTHONY | C98: 1998 | D98: =INDEX('LISTE DES TIREURS'!E$83:E$85,'LISTE DES TIREURS'!F106) -> F90 | F98: 2
A99: 25 | B99: CURRAT JEAN-MICHEL | C99: 1962 | D99: =INDEX('LISTE DES TIREURS'!E$83:E$85,'LISTE DES TIREURS'!F107) -> F90 | F99: 2
A100: 26 | B100: DA SILVA REIS DANIEL | C100: 1992 | D100: =INDEX('LISTE DES TIREURS'!E$83:E$85,'LISTE DES TIREURS'!F108) -> F90 | F100: 2
A101: 27 | B101: DEFFERARD VALENTIN | C101: 1992 | D101: =INDEX('LISTE DES TIREURS'!E$83:E$85,'LISTE DES TIREURS'!F109) -> F90 | F101: 2
A102: 28 | B102: DESPONT JOEL | C102: 1975 | D102: =INDEX('LISTE DES TIREURS'!E$83:E$85,'LISTE DES TIREURS'!F110) -> F90 | F102: 2
A103: 29 | B103: DJONI SHEFIT | C103: 1988 | D103: =INDEX('LISTE DES TIREURS'!E$83:E$85,'LISTE DES TIREURS'!F111) -> F90 | F103: 2
A104: 30 | B104: DOBROES TEXEIRA NUNO | C104: 1979 | D104: =INDEX('LISTE DES TIREURS'!E$83:E$85,'LISTE DES TIREURS'!F112) -> F90 | F104: 2
A105: 31 | B105: DUBEY VINCENT | C105: 1982 | D105: =INDEX('LISTE DES TIREURS'!E$83:E$85,'LISTE DES TIREURS'!F113) -> F90 | F105: 2
A106: 32 | B106: DUPONT MICHEL | C106: 1969 | D106: =INDEX('LISTE DES TIREURS'!E$83:E$85,'LISTE DES TIREURS'!F114) -> F90 | F106: 2
A107: 33 | B107: EBERHARD BERNARD | C107: 0 | D107: =INDEX('LISTE DES TIREURS'!E$83:E$85,'LISTE DES TIREURS'!F115) -> F90 | F107: 2
A108: 34 | B108: ELISEEV OLEG | C108: 1984 | D108: =INDEX('LISTE DES TIREURS'!E$83:E$85,'LISTE DES TIREURS'!F116) -> F90 | F108: 2
A109: 35 | B109: ESTREMADOYRO JOSE MOISES | C109: 1983 | D109: =INDEX('LISTE DES TIREURS'!E$83:E$85,'LISTE DES TIREURS'!F117) -> F90 | F109: 2
A110: 36 | B110: FENELON ROBIN | C110: 1989 | D110: =INDEX('LISTE DES TIREURS'!E$83:E$85,'LISTE DES TIREURS'!F118) -> F90 | F110: 2
A111: 37 | B111: FERRARI WILLIAM | C111: 1970 | D111: =INDEX('LISTE DES TIREURS'!E$83:E$85,'LISTE DES TIREURS'!F119) -> F90 | F111: 2
A112: 38 | B112: FONGANG TEMGOUA ALAIN | C112: 1974 | D112: =INDEX('LISTE DES TIREURS'!E$83:E$85,'LISTE DES TIREURS'!F120) -> F90 | F112: 2
A113: 39 | B113: FUGA REXHEP | C113: 1993 | D113: =INDEX('LISTE DES TIREURS'!E$83:E$85,'LISTE DES TIREURS'!F121) -> F90 | F113: 2
A114: 40 | B114: GACHOUD VINCENT | C114: 1991 | D114: =INDEX('LISTE DES TIREURS'!E$83:E$85,'LISTE DES TIREURS'!F122) -> F57 / M | F114: 2
A115: 41 | B115: GAGO DA SILVA CRUZ RUI JORGE | C115: 1973 | D115: =INDEX('LISTE DES TIREURS'!E$83:E$85,'LISTE DES TIREURS'!F123) -> F90 | F115: 2
A116: 42 | B116: GALLAND ANTOINE | C116: 1986 | D116: =INDEX('LISTE DES TIREURS'!E$83:E$85,'LISTE DES TIREURS'!F124) -> F90 | F116: 2
A117: 43 | B117: GALLAND GILLES | C117: 1956 | D117: =INDEX('LISTE DES TIREURS'!E$83:E$85,'LISTE DES TIREURS'!F125) -> F90 | F117: 2
A118: 44 | B118: GALLAND MAXIME | C118: 1987 | D118: =INDEX('LISTE DES TIREURS'!E$83:E$85,'LISTE DES TIREURS'!F126) -> F57 / M | F118: 2
A119: 45 | B119: GALLAND STELMA | C119: 1986 | D119: =INDEX('LISTE DES TIREURS'!E$83:E$85,'LISTE DES TIREURS'!F127) -> F90 | F119: 2
A120: 46 | B120: GENTILE NICOLAS | C120: 1987 | D120: =INDEX('LISTE DES TIREURS'!E$83:E$85,'LISTE DES TIREURS'!F128) -> F90 | F120: 2
A121: 47 | B121: GLORIANT ANTOINE | C121: 1988 | D121: =INDEX('LISTE DES TIREURS'!E$83:E$85,'LISTE DES TIREURS'!F129) -> F90 | F121: 2
A122: 48 | B122: GONCALVES DUARTE SILVIO MIGUEL | C122: 1980 | D122: =INDEX('LISTE DES TIREURS'!E$83:E$85,'LISTE DES TIREURS'!F130) -> F90 | F122: 3
A123: 49 | B123: GRANGIER PIERRE | C123: 1949 | D123: =INDEX('LISTE DES TIREURS'!E$83:E$85,'LISTE DES TIREURS'!F131) -> F90 | F123: 2
A124: 50 | B124: HEINZL MICKAEL | C124: 1972 | D124: =INDEX('LISTE DES TIREURS'!E$83:E$85,'LISTE DES TIREURS'!F132) -> F90 | F124: 2
A125: 51 | B125: HENRY REGIS | C125: 1989 | D125: =INDEX('LISTE DES TIREURS'!E$83:E$85,'LISTE DES TIREURS'!F$133) -> F90 | F125: 2
A126: 52 | B126: HURUGLICA ARBER | C126: 1993 | D126: =INDEX('LISTE DES TIREURS'!E$83:E$85,'LISTE DES TIREURS'!F134) -> F90 | F126: 3
A127: 53 | B127: IORFIDA GABRIEL | C127: 1994 | D127: =INDEX('LISTE DES TIREURS'!E$83:E$85,'LISTE DES TIREURS'!F135) -> F90 | F127: 2
A128: 54 | B128: JANUZAJ ZENULLAH | C128: 1990 | D128: =INDEX('LISTE DES TIREURS'!E$83:E$85,'LISTE DES TIREURS'!F136) -> F90 | F128: 2
A129: 55 | B129: JUSUF MUAZ | C129: 1985 | D129: =INDEX('LISTE DES TIREURS'!E$83:E$85,'LISTE DES TIREURS'!F137) -> F90 | F129: 2
A130: 56 | B130: KENFAR AMAR | C130: 1975 | D130: =INDEX('LISTE DES TIREURS'!E$83:E$85,'LISTE DES TIREURS'!F138) -> F90 | F130: 2
A131: 57 | B131: KOLLY BERNARD | C131: 1959 | D131: =INDEX('LISTE DES TIREURS'!E$83:E$85,'LISTE DES TIREURS'!F139) -> F57 / M | F131: 2
A132: 58 | B132: LARBI SAMUEL | C132: 1990 | D132: =INDEX('LISTE DES TIREURS'!E$83:E$85,'LISTE DES TIREURS'!F140) -> F57 / M | F132: 2
A133: 59 | B133: LEONARD DAMIEN | C133: 1993 | D133: =INDEX('LISTE DES TIREURS'!E$83:E$85,'LISTE DES TIREURS'!F141) -> F90 | F133: 2
A134: 60 | B134: LETANG LUDOVIC | C134: 0 | D134: =INDEX('LISTE DES TIREURS'!E$83:E$85,'LISTE DES TIREURS'!F142) -> F90 | F134: 2
A135: 61 | B135: MAEMMERLEN THIBAULT | C135: 0 | D135: =INDEX('LISTE DES TIREURS'!E$83:E$85,'LISTE DES TIREURS'!F143) -> F90 | F135: 2
A136: 62 | B136: MARCHON PHILIPPE | C136: 1962 | D136: =INDEX('LISTE DES TIREURS'!E$83:E$85,'LISTE DES TIREURS'!F144) -> F90 | F136: 2
A137: 63 | B137: MARTIN JEAN-PIERRE | C137: 1969 | D137: =INDEX('LISTE DES TIREURS'!E$83:E$85,'LISTE DES TIREURS'!F145) -> F57 / M | F137: 2
A138: 64 | B138: MARTINS MARQUES FILIPE | C138: 1986 | D138: =INDEX('LISTE DES TIREURS'!E$83:E$85,'LISTE DES TIREURS'!F146) -> F90 | F138: 2
A139: 65 | B139: MASTROGUILIO ANTONIO | C139: 1993 | D139: =INDEX('LISTE DES TIREURS'!E$83:E$85,'LISTE DES TIREURS'!F147) -> F90 | F139: 3
A140: 66 | B140: MASTROGUILIO GIUSEPPE | C140: 1995 | D140: =INDEX('LISTE DES TIREURS'!E$83:E$85,'LISTE DES TIREURS'!F148) -> F90 | F140: 3
A141: 67 | B141: MEIER MAXIMILIANO | C141: 1987 | D141: =INDEX('LISTE DES TIREURS'!E$83:E$85,'LISTE DES TIREURS'!F149) -> F90 | F141: 2
A142: 68 | B142: MENDES DE BESSA JOSE CARLOS | C142: 1993 | D142: =INDEX('LISTE DES TIREURS'!E$83:E$85,'LISTE DES TIREURS'!F150) -> F90 | F142: 2
A143: 69 | B143: MENOUD SEBASTIEN | C143: 1974 | D143: =INDEX('LISTE DES TIREURS'!E$83:E$85,'LISTE DES TIREURS'!F151) -> F57 / M | F143: 2
A144: 70 | B144: MENOUD SONJA | C144: 1952 | D144: =INDEX('LISTE DES TIREURS'!E$83:E$85,'LISTE DES TIREURS'!F152) -> F90 | F144: 2
A145: 71 | B145: MONNEY ERIC | C145: 1995 | D145: =INDEX('LISTE DES TIREURS'!E$83:E$85,'LISTE DES TIREURS'!F153) -> F90 | F145: 3
A146: 72 | B146: MORENO MARK | C146: 1985 | D146: =INDEX('LISTE DES TIREURS'!E$83:E$85,'LISTE DES TIREURS'!F154) -> F90 | F146: 2
A147: 73 | B147: MORISSET ALEXANDRE | C147: 1974 | D147: =INDEX('LISTE DES TIREURS'!E$83:E$85,'LISTE DES TIREURS'!F155) -> F90 | F147: 2
A148: 74 | B148: MOURA OLIVIER | C148: 1965 | D148: =INDEX('LISTE DES TIREURS'!E$83:E$85,'LISTE DES TIREURS'!F156) -> F90 | F148: 2
A149: 75 | B149: NJOH JEAN-ROBERT | C149: 1980 | D149: =INDEX('LISTE DES TIREURS'!E$83:E$85,'LISTE DES TIREURS'!F157) -> F90 | F149: 2
A150: 76 | B150: NUSSBAUMER ANTOINE | C150: 1983 | D150: =INDEX('LISTE DES TIREURS'!E$83:E$85,'LISTE DES TIREURS'!F158) -> F90 | F150: 2
A151: 77 | B151: PAUCHARD BERNARD | C151: 1990 | D151: =INDEX('LISTE DES TIREURS'!E$83:E$85,'LISTE DES TIREURS'!F159) -> F90 | F151: 3
A152: 78 | B152: PETITJEAN BRICE | C152: 1990 | D152: =INDEX('LISTE DES TIREURS'!E$83:E$85,'LISTE DES TIREURS'!F160) -> F90 | F152: 2
A153: 79 | B153: PICCAND VINCENT | C153: 2000 | D153: =INDEX('LISTE DES TIREURS'!E$83:E$85,'LISTE DES TIREURS'!F161) -> F90 | F153: 2
A154: 80 | B154: PREUHS JEAN-FRANCOIS | C154: 1975 | D154: =INDEX('LISTE DES TIREURS'!E$83:E$85,'LISTE DES TIREURS'!F162) -> F90 | F154: 2
A155: 81 | B155: PUPIN FLORIAN | C155: 1984 | D155: =INDEX('LISTE DES TIREURS'!E$83:E$85,'LISTE DES TIREURS'!F163) -> F90 | F155: 2
A156: 82 | B156: RABOUD CLAUDINE | C156: 1981 | D156: =INDEX('LISTE DES TIREURS'!E$83:E$85,'LISTE DES TIREURS'!F164) -> F90 | F156: 2
A157: 83 | B157: RAMADANI REFIK | C157: 0 | D157: =INDEX('LISTE DES TIREURS'!E$83:E$85,'LISTE DES TIREURS'!F165) -> F90 | F157: 2
A158: 84 | B158: REYMOND MAÏC | C158: 1979 | D158: =INDEX('LISTE DES TIREURS'!E$83:E$85,'LISTE DES TIREURS'!F166) -> F90 | F158: 2
A159: 85 | B159: RIZZO GIOVANNI | C159: 1976 | D159: =INDEX('LISTE DES TIREURS'!E$83:E$85,'LISTE DES TIREURS'!F167) -> F90 | F159: 2
A160: 86 | B160: ROJAS OLMOS MAURICIO JASMANI | C160: 1981 | D160: =INDEX('LISTE DES TIREURS'!E$83:E$85,'LISTE DES TIREURS'!F168) -> F90 | F160: 2
A161: 87 | B161: ROUX STEFAN | C161: 1964 | D161: =INDEX('LISTE DES TIREURS'!E$83:E$85,'LISTE DES TIREURS'!F169) -> F90 | F161: 2
A162: 88 | B162: SCHNARRENBERGER ELIO | C162: 1991 | D162: =INDEX('LISTE DES TIREURS'!E$83:E$85,'LISTE DES TIREURS'!F170) -> F90 | F162: 2
A163: 89 | B163: SOULIER PIERRE | C163: 1989 | D163: =INDEX('LISTE DES TIREURS'!E$83:E$85,'LISTE DES TIREURS'!F171) -> F90 | F163: 2
A164: 90 | B164: SPAETH GUILLAUME | C164: 1995 | D164: =INDEX('LISTE DES TIREURS'!E$83:E$85,'LISTE DES TIREURS'!F172) -> F90 | F164: 2
A165: 91 | B165: SPINELLI SOPHIE | C165: 1980 | D165: =INDEX('LISTE DES TIREURS'!E$83:E$85,'LISTE DES TIREURS'!F173) -> F90 | F165: 2
A166: 92 | B166: STAEMPFLI MATTHIEU | C166: 0 | D166: =INDEX('LISTE DES TIREURS'!E$83:E$85,'LISTE DES TIREURS'!F174) -> F90 | F166: 2
A167: 93 | B167: STEHLIN MATHIEU | C167: 1994 | D167: =INDEX('LISTE DES TIREURS'!E$83:E$85,'LISTE DES TIREURS'!F175) -> F90 | F167: 2
A168: 94 | B168: TEIXEIRA VICTOR | C168: 1983 | D168: =INDEX('LISTE DES TIREURS'!E$83:E$85,'LISTE DES TIREURS'!F176) -> F90 | F168: 2
A169: 95 | B169: TERRIER ANTOINE | C169: 1995 | D169: =INDEX('LISTE DES TIREURS'!E$83:E$85,'LISTE DES TIREURS'!F177) -> F90 | F169: 2
A170: 96 | B170: THARMANANDA THARMANISHANTH | C170: 1990 | D170: =INDEX('LISTE DES TIREURS'!E$83:E$85,'LISTE DES TIREURS'!F178) -> F90 | F170: 2
A171: 97 | B171: TOPOROWICZ CIORCERO ELISSON | C171: 1989 | D171: =INDEX('LISTE DES TIREURS'!E$83:E$85,'LISTE DES TIREURS'!F179) -> F90 | F171: 2
A172: 98 | B172: TOUCHEFEU THIBAUT | C172: 1986 | D172: =INDEX('LISTE DES TIREURS'!E$83:E$85,'LISTE DES TIREURS'!F180) -> F90 | F172: 2
A173: 99 | B173: TURRIAN JEAN-DANIEL | C173: 1988 | D173: =INDEX('LISTE DES TIREURS'!E$83:E$85,'LISTE DES TIREURS'!F181) -> F90 | F173: 2
A174: 100 | B174: TUSHI BEKIM | C174: 1986 | D174: =INDEX('LISTE DES TIREURS'!E$83:E$85,'LISTE DES TIREURS'!F182) -> F90 | F174: 2
A175: 101 | B175: ÜNALAN ÜMIT | C175: 1981 | D175: =INDEX('LISTE DES TIREURS'!E$83:E$85,'LISTE DES TIREURS'!F183) -> F90 | F175: 2
A176: 102 | B176: UTZ MARTIAL | C176: 1971 | D176: =INDEX('LISTE DES TIREURS'!E$83:E$85,'LISTE DES TIREURS'!F184) -> F90 | F176: 2
A177: 103 | B177: VIDEIRA LUIS | C177: 1989 | D177: =INDEX('LISTE DES TIREURS'!E$83:E$85,'LISTE DES TIREURS'!F185) -> F90 | F177: 2
A178: 104 | B178: VIELLE VINCENT | C178: 1992 | D178: =INDEX('LISTE DES TIREURS'!E$83:E$85,'LISTE DES TIREURS'!F186) -> F90 | F178: 2
A179: 105 | B179: WALCH JORIS | C179: 1989 | D179: =INDEX('LISTE DES TIREURS'!E$83:E$85,'LISTE DES TIREURS'!F187) -> F90 | F179: 2
A180: 106 | B180: WESEMANN KNUT | C180: 1985 | D180: =INDEX('LISTE DES TIREURS'!E$83:E$85,'LISTE DES TIREURS'!F188) -> F90 | F180: 2
A181: 107 | B181: WINKLER ANDREAS | C181: 1982 | D181: =INDEX('LISTE DES TIREURS'!E$83:E$85,'LISTE DES TIREURS'!F189) -> F90 | F181: 2
A182: 108 | B182: WINKWORTH JAMES | C182: 1996 | D182: =INDEX('LISTE DES TIREURS'!E$83:E$85,'LISTE DES TIREURS'!F190) -> F90 | F182: 2
A183: 109 | B183: WIRTHS STEFAN | C183: 1984 | D183: =INDEX('LISTE DES TIREURS'!E$83:E$85,'LISTE DES TIREURS'!F191) -> F90 | F183: 2
A184: 110 | B184: WYSSMUELLER ALAIN | C184: 1992 | D184: =INDEX('LISTE DES TIREURS'!E$83:E$85,'LISTE DES TIREURS'!F192) -> F90 | F184: 2
A185: 111 | B185: YASYN SAID | C185: 1989 | D185: =INDEX('LISTE DES TIREURS'!E$83:E$85,'LISTE DES TIREURS'!F193) -> F90 | F185: 2
A186: 112 | B186: ZBINDEN CAROLE | C186: 1979 | D186: =INDEX('LISTE DES TIREURS'!E$83:E$85,'LISTE DES TIREURS'!F194) -> F90 | F186: 2
A187: 113 | B187: ZIBOUCHE FARID | C187: 1988 | D187: =INDEX('LISTE DES TIREURS'!E$83:E$85,'LISTE DES TIREURS'!F195) -> F90 | F187: 2
A188: 114 | B188: ZUENDORF ECKEHARD | C188: 1970 | D188: =INDEX('LISTE DES TIREURS'!E$83:E$85,'LISTE DES TIREURS'!F196) -> F90 | F188: 2
A189: 115 | D189: =INDEX('LISTE DES TIREURS'!E$83:E$85,'LISTE DES TIREURS'!F197) -> 0 | F189: 2
A190: 116 | D190: =INDEX('LISTE DES TIREURS'!E$83:E$85,'LISTE DES TIREURS'!F198) -> 0 | F190: 2
A191: 117 | D191: =INDEX('LISTE DES TIREURS'!E$83:E$85,'LISTE DES TIREURS'!F199) -> 0 | F191: 2
A192: 118 | D192: =INDEX('LISTE DES TIREURS'!E$83:E$85,'LISTE DES TIREURS'!F200) -> 0 | F192: 2
A193: 119 | D193: =INDEX('LISTE DES TIREURS'!E$83:E$85,'LISTE DES TIREURS'!F201) -> 0 | F193: 2
A194: 120 | D194: =INDEX('LISTE DES TIREURS'!E$83:E$85,'LISTE DES TIREURS'!F202) -> 0 | F194: 2
A195: 121 | D195: =INDEX('LISTE DES TIREURS'!E$83:E$85,'LISTE DES TIREURS'!F203) -> 0 | F195: 2
A196: 122 | D196: =INDEX('LISTE DES TIREURS'!E$83:E$85,'LISTE DES TIREURS'!F204) -> 0 | F196: 2
A197: 123 | D197: =INDEX('LISTE DES TIREURS'!E$83:E$85,'LISTE DES TIREURS'!F205) -> 0 | F197: 1
A198: 124 | D198: =INDEX('LISTE DES TIREURS'!E$83:E$85,'LISTE DES TIREURS'!F206) -> 0 | F198: 1
A199: 125 | D199: =INDEX('LISTE DES TIREURS'!E$83:E$85,'LISTE DES TIREURS'!F207) -> 0 | F199: 1
A200: 126 | D200: =INDEX('LISTE DES TIREURS'!E$83:E$85,'LISTE DES TIREURS'!F208) -> 0 | F200: 1
A201: 127 | D201: =INDEX('LISTE DES TIREURS'!E$83:E$85,'LISTE DES TIREURS'!F209) -> 0 | F201: 1
A202: 128 | D202: =INDEX('LISTE DES TIREURS'!E$83:E$85,'LISTE DES TIREURS'!F210) -> 0 | F202: 1
A203: 129 | D203: =INDEX('LISTE DES TIREURS'!E$83:E$85,'LISTE DES TIREURS'!F211) -> 0 | F203: 1
A204: 130 | D204: =INDEX('LISTE DES TIREURS'!E$83:E$85,'LISTE DES TIREURS'!F212) -> 0 | F204: 1
A205: 131 | D205: =INDEX('LISTE DES TIREURS'!E$83:E$85,'LISTE DES TIREURS'!F213) -> 0 | F205: 1
A206: 132 | D206: =INDEX('LISTE DES TIREURS'!E$83:E$85,'LISTE DES TIREURS'!F214) -> 0 | F206: 1
A207: 133 | D207: =INDEX('LISTE DES TIREURS'!E$83:E$85,'LISTE DES TIREURS'!F215) -> 0 | F207: 1
A208: 134 | D208: =INDEX('LISTE DES TIREURS'!E$83:E$85,'LISTE DES TIREURS'!F216) -> 0 | F208: 1
A209: 135 | D209: =INDEX('LISTE DES TIREURS'!E$83:E$85,'LISTE DES TIREURS'!F217) -> 0 | F209: 1
A210: 136 | D210: =INDEX('LISTE DES TIREURS'!E$83:E$85,'LISTE DES TIREURS'!F218) -> 0 | F210: 1
A211: 137 | D211: =INDEX('LISTE DES TIREURS'!E$83:E$85,'LISTE DES TIREURS'!F219) -> 0 | F211: 1
A212: 138 | D212: =INDEX('LISTE DES TIREURS'!E$83:E$85,'LISTE DES TIREURS'!F220) -> 0 | F212: 1
A213: 139 | D213: =INDEX('LISTE DES TIREURS'!E$83:E$85,'LISTE DES TIREURS'!F221) -> 0 | F213: 1
A214: 140 | D214: =INDEX('LISTE DES TIREURS'!E$83:E$85,'LISTE DES TIREURS'!F222) -> 0 | F214: 1
A215: 141 | D215: =INDEX('LISTE DES TIREURS'!E$83:E$85,'LISTE DES TIREURS'!F223) -> 0 | F215: 1
A216: 142 | D216: =INDEX('LISTE DES TIREURS'!E$83:E$85,'LISTE DES TIREURS'!F224) -> 0 | F216: 1
A217: 143 | D217: =INDEX('LISTE DES TIREURS'!E$83:E$85,'LISTE DES TIREURS'!F225) -> 0 | F217: 1
A218: 144 | D218: =INDEX('LISTE DES TIREURS'!E$83:E$85,'LISTE DES TIREURS'!F226) -> 0 | F218: 1
A219: 145 | D219: =INDEX('LISTE DES TIREURS'!E$83:E$85,'LISTE DES TIREURS'!F227) -> 0 | F219: 1
A220: 146 | D220: =INDEX('LISTE DES TIREURS'!E$83:E$85,'LISTE DES TIREURS'!F228) -> 0 | F220: 1
A221: 147 | D221: =INDEX('LISTE DES TIREURS'!E$83:E$85,'LISTE DES TIREURS'!F229) -> 0 | F221: 1
A222: 148 | D222: =INDEX('LISTE DES TIREURS'!E$83:E$85,'LISTE DES TIREURS'!F230) -> 0 | F222: 1
A223: 149 | D223: =INDEX('LISTE DES TIREURS'!E$83:E$85,'LISTE DES TIREURS'!F231) -> 0 | F223: 1
A224: 150 | D224: =INDEX('LISTE DES TIREURS'!E$83:E$85,'LISTE DES TIREURS'!F232) -> 0 | F224: 1
A225: 151 | D225: =INDEX('LISTE DES TIREURS'!E$83:E$85,'LISTE DES TIREURS'!F233) -> 0 | F225: 1
A226: 152 | D226: =INDEX('LISTE DES TIREURS'!E$83:E$85,'LISTE DES TIREURS'!F234) -> 0 | F226: 1
A227: 153 | D227: =INDEX('LISTE DES TIREURS'!E$83:E$85,'LISTE DES TIREURS'!F235) -> 0 | F227: 1
A228: 154 | D228: =INDEX('LISTE DES TIREURS'!E$83:E$85,'LISTE DES TIREURS'!F236) -> 0 | F228: 1
A229: 155 | D229: =INDEX('LISTE DES TIREURS'!E$83:E$85,'LISTE DES TIREURS'!F237) -> 0 | F229: 1
A230: 156 | D230: =INDEX('LISTE DES TIREURS'!E$83:E$85,'LISTE DES TIREURS'!F238) -> 0 | F230: 1
A231: 157 | D231: =INDEX('LISTE DES TIREURS'!E$83:E$85,'LISTE DES TIREURS'!F239) -> 0 | F231: 1
A232: 158 | D232: =INDEX('LISTE DES TIREURS'!E$83:E$85,'LISTE DES TIREURS'!F240) -> 0 | F232: 1
A233: 159 | D233: =INDEX('LISTE DES TIREURS'!E$83:E$85,'LISTE DES TIREURS'!F241) -> 0 | F233: 1
A234: 160 | D234: =INDEX('LISTE DES TIREURS'!E$83:E$85,'LISTE DES TIREURS'!F242) -> 0 | F234: 1
A235: 161 | D235: =INDEX('LISTE DES TIREURS'!E$83:E$85,'LISTE DES TIREURS'!F243) -> 0 | F235: 1
A236: 162 | D236: =INDEX('LISTE DES TIREURS'!E$83:E$85,'LISTE DES TIREURS'!F244) -> 0 | F236: 1
A237: 163 | D237: =INDEX('LISTE DES TIREURS'!E$83:E$85,'LISTE DES TIREURS'!F245) -> 0 | F237: 1
A238: 164 | D238: =INDEX('LISTE DES TIREURS'!E$83:E$85,'LISTE DES TIREURS'!F246) -> 0 | F238: 1
A239: 165 | D239: =INDEX('LISTE DES TIREURS'!E$83:E$85,'LISTE DES TIREURS'!F247) -> 0 | F239: 1
A240: 166 | D240: =INDEX('LISTE DES TIREURS'!E$83:E$85,'LISTE DES TIREURS'!F248) -> 0 | F240: 1
A241: 167 | D241: =INDEX('LISTE DES TIREURS'!E$83:E$85,'LISTE DES TIREURS'!F249) -> 0 | F241: 1
A242: 168 | D242: =INDEX('LISTE DES TIREURS'!E$83:E$85,'LISTE DES TIREURS'!F250) -> 0 | F242: 1
A243: 169 | D243: =INDEX('LISTE DES TIREURS'!E$83:E$85,'LISTE DES TIREURS'!F251) -> 0 | F243: 1
A244: 170 | D244: =INDEX('LISTE DES TIREURS'!E$83:E$85,'LISTE DES TIREURS'!F252) -> 0 | F244: 1
F245: 1
F246: 1
... 6 more rows

Sheet FEUILLE D'INSCRIPTION
A1: ANNEE - JAHR | E1: CATEGORIE | F1: Entreprise | I1: ='LISTE DES TIREURS'!D2 -> 2022 | O1: Participation au tir | R1: Rouge = tireur à double | S1: 5
A2: ='LISTE DES TIREURS'!$D$2-59 -> 1963 | B2: à | C2: ='LISTE DES TIREURS'!$D$2-20 -> 2002 | D2: = | E2: Elite Dame | F2: LIEBHERR MACHINES BULLE SA | X2: A envoyer à :
F3: Catégorie : | G3: A | H3: Equipe | I3: 14 | J3: N° de groupe | O3: Teilnahme Schießen | X3: hubert.thiemard@tir-interusines.ch
A4: ='LISTE DES TIREURS'!$D$2-69 -> 1953 | B4: à | C4: ='LISTE DES TIREURS'!$D$2-60 -> 1962 | D4: = | E4: Vétéran Dame Vétéran | F4: Liste des tireurs | K4: N° d'équipe | M4: Catégorie 2
F5: Nom prénom | G5: Année nais. | H5: Catégorie 1 | I5: Nom de groupe | L5: Entreprise - Firma | N5: Arme | O5: Séance
A6: < | B6: ='LISTE DES TIREURS'!$D$2-70 -> 1952 | D6: = | E6: Sénior Vétéran | F6: Name Vorname | G6: Geburtsjahr | I6: Gruppe | N6: Waffe | O6: 1e VE | P6: 2e SA | Q6: 3e SA
A7: ='LISTE DES TIREURS'!$D$2-19 -> 2003 | B7: à | C7: ='LISTE DES TIREURS'!$D$2-17 -> 2005 | D7: = | E7: Junior Junior Dame | F7: =INDEX('LISTE DES TIREURS'!B$74:B$244,'FEUILLE D''INSCRIPTION'!S7) -> BESIM DEMIRI | G7: =INDEX('LISTE DES TIREURS'!C$74:C$244,'FEUILLE D''INSCRIPTION'!S7) -> 1981 | H7: =INDEX('FEUILLE D''INSCRIPTION'!U$7:U$15,'FEUILLE D''INSCRIPTION'!T7) -> ELITE | I7: =INDEX('LISTE DES TIREURS'!G$8:G$82,'FEUILLE D''INSCRIPTION'!V7) -> LE MOLESON LMB | J7: L | K7: =IF(F7>0,$I$3,"") -> 14 | L7: =IF(F7>0,$F$2,"") -> LIEBHERR MACHINES BULLE SA | M7: =IF(F7>0,$G$3,"") -> A | N7: =INDEX('LISTE DES TIREURS'!D$74:D$244,'FEUILLE D''INSCRIPTION'!S7) -> F90 | R7: =COUNTIFS($S$7:$S$181,S7) -> 1 | S7: 14 | T7: 2 | V7: 14
F8: =INDEX('LISTE DES TIREURS'!B$74:B$244,'FEUILLE D''INSCRIPTION'!S8) -> CHALABI DAVID | G8: =INDEX('LISTE DES TIREURS'!C$74:C$244,'FEUILLE D''INSCRIPTION'!S8) -> 1996 | H8: =INDEX('FEUILLE D''INSCRIPTION'!U$7:U$15,'FEUILLE D''INSCRIPTION'!T8) -> VETERAN | I8: =INDEX('LISTE DES TIREURS'!G$8:G$82,'FEUILLE D''INSCRIPTION'!V8) -> LE MOLESON LMB | J8: L | K8: =IF(F8>0,$I$3,"") -> 14 | L8: =IF(F8>0,$F$2,"") -> LIEBHERR MACHINES BULLE SA | M8: =IF(F8>0,$G$3,"") -> A | N8: =INDEX('LISTE DES TIREURS'!D$74:D$244,'FEUILLE D''INSCRIPTION'!S8) -> F90 | R8: =COUNTIFS($S$7:$S$181,S8) -> 1 | S8: 18 | T8: 3 | U8: ELITE | V8: 14
A9: ='LISTE DES TIREURS'!$D$2-16 -> 2006 | B9: à | C9: ='LISTE DES TIREURS'!$D$2-10 -> 2012 | D9: = | E9: Adolescent | F9: =INDEX('LISTE DES TIREURS'!B$74:B$244,'FEUILLE D''INSCRIPTION'!S9) -> CORBINELLI GIOVANNI | G9: =INDEX('LISTE DES TIREURS'!C$74:C$244,'FEUILLE D''INSCRIPTION'!S9) -> 1978 | H9: =INDEX('FEUILLE D''INSCRIPTION'!U$7:U$15,'FEUILLE D''INSCRIPTION'!T9) -> ELITE | I9: =INDEX('LISTE DES TIREURS'!G$8:G$82,'FEUILLE D''INSCRIPTION'!V9) -> LE MOLESON LMB | J9: M | K9: 14 | L9: LIEBHERR MACHINES BULLE SA | M9: A | N9: =INDEX('LISTE DES TIREURS'!D$74:D$244,'FEUILLE D''INSCRIPTION'!S9) -> F90 | R9: 1 | S9: 22 | T9: 2 | U9: VETERAN | V9: 14
F10: =INDEX('LISTE DES TIREURS'!B$74:B$244,'FEUILLE D''INSCRIPTION'!S10) -> MARTINS MARQUES FILIPE | G10: =INDEX('LISTE DES TIREURS'!C$74:C$244,'FEUILLE D''INSCRIPTION'!S10) -> 1986 | H10: =INDEX('FEUILLE D''INSCRIPTION'!U$7:U$15,'FEUILLE D''INSCRIPTION'!T10) -> DAME VETERAN | I10: =INDEX('LISTE DES TIREURS'!G$8:G$82,'FEUILLE D''INSCRIPTION'!V10) -> LE MOLESON LMB | J10: XXL | K10: 14 | L10: LIEBHERR MACHINES BULLE SA | M10: A | N10: =INDEX('LISTE DES TIREURS'!D$74:D$244,'FEUILLE D''INSCRIPTION'!S10) -> F90 | R10: 1 | S10: 65 | T10: 6 | U10: SENIOR VETERAN | V10: 14
F11: =INDEX('LISTE DES TIREURS'!B$74:B$244,'FEUILLE D''INSCRIPTION'!S11) -> MEIER MAXIMILIANO | G11: =INDEX('LISTE DES TIREURS'!C$74:C$244,'FEUILLE D''INSCRIPTION'!S11) -> 1987 | H11: =INDEX('FEUILLE D''INSCRIPTION'!U$7:U$15,'FEUILLE D''INSCRIPTION'!T11) -> ELITE | I11: =INDEX('LISTE DES TIREURS'!G$8:G$82,'FEUILLE D''INSCRIPTION'!V11) -> LE MOLESON LMB | J11: M | K11: =IF(F11>0,$I$3,"") -> 14 | L11: LIEBHERR MACHINES BULLE SA | M11: A | N11: =INDEX('LISTE DES TIREURS'!D$74:D$244,'FEUILLE D''INSCRIPTION'!S11) -> F90 | R11: 1 | S11: 68 | T11: 2 | U11: DAME | V11: 14
U12: DAME VETERAN
F13: =INDEX('LISTE DES TIREURS'!B$74:B$244,'FEUILLE D''INSCRIPTION'!S13) -> MASTROGUILIO GIUSEPPE | G13: =INDEX('LISTE DES TIREURS'!C$74:C$244,'FEUILLE D''INSCRIPTION'!S13) -> 1995 | H13: =INDEX('FEUILLE D''INSCRIPTION'!U$7:U$15,'FEUILLE D''INSCRIPTION'!T13) -> ELITE | I13: =INDEX('LISTE DES TIREURS'!G$8:G$82,'FEUILLE D''INSCRIPTION'!V13) -> LA VUDALLA LMB | J13: M | K13: 14 | L13: LIEBHERR MACHINES BULLE SA | M13: A | N13: =INDEX('LISTE DES TIREURS'!D$74:D$244,'FEUILLE D''INSCRIPTION'!S13) -> F90 | R13: =COUNTIFS($S$7:$S$181,S13) -> 1 | S13: 67 | T13: 2 | U13: JUNIOR | V13: 11
F14: =INDEX('LISTE DES TIREURS'!B$74:B$244,'FEUILLE D''INSCRIPTION'!S14) -> ELISEEV OLEG | G14: =INDEX('LISTE DES TIREURS'!C$74:C$244,'FEUILLE D''INSCRIPTION'!S14) -> 1984 | H14: =INDEX('FEUILLE D''INSCRIPTION'!U$7:U$15,'FEUILLE D''INSCRIPTION'!T14) -> ELITE | I14: =INDEX('LISTE DES TIREURS'!G$8:G$82,'FEUILLE D''INSCRIPTION'!V14) -> LA VUDALLA LMB | J14: XXL | K14: 14 | L14: LIEBHERR MACHINES BULLE SA | M14: A | N14: =INDEX('LISTE DES TIREURS'!D$74:D$244,'FEUILLE D''INSCRIPTION'!S14) -> F90 | R14: =COUNTIFS($S$7:$S$181,S14) -> 1 | S14: 35 | T14: 2 | U14: JUNIOR DAME | V14: 11
F15: =INDEX('LISTE DES TIREURS'!B$74:B$244,'FEUILLE D''INSCRIPTION'!S15) -> GALLAND STELMA | G15: =INDEX('LISTE DES TIREURS'!C$74:C$244,'FEUILLE D''INSCRIPTION'!S15) -> 1986 | H15: =INDEX('FEUILLE D''INSCRIPTION'!U$7:U$15,'FEUILLE D''INSCRIPTION'!T15) -> VETERAN | I15: =INDEX('LISTE DES TIREURS'!G$8:G$82,'FEUILLE D''INSCRIPTION'!V15) -> LA VUDALLA LMB | J15: L | K15: 14 | L15: LIEBHERR MACHINES BULLE SA | M15: A | N15: =INDEX('LISTE DES TIREURS'!D$74:D$244,'FEUILLE D''INSCRIPTION'!S15) -> F90 | R15: =COUNTIFS($S$7:$S$181,S15) -> 1 | S15: 46 | T15: 3 | U15: ADOLESCENT | V15: 11
F16: =INDEX('LISTE DES TIREURS'!B$74:B$244,'FEUILLE D''INSCRIPTION'!S16) -> MARTIN JEAN-PIERRE | G16: =INDEX('LISTE DES TIREURS'!C$74:C$244,'FEUILLE D''INSCRIPTION'!S16) -> 1969 | H16: =INDEX('FEUILLE D''INSCRIPTION'!U$7:U$15,'FEUILLE D''INSCRIPTION'!T16) -> ELITE | I16: =INDEX('LISTE DES TIREURS'!G$8:G$82,'FEUILLE D''INSCRIPTION'!V16) -> LA VUDALLA LMB | J16: XL | K16: 14 | L16: LIEBHERR MACHINES BULLE SA | M16: A | N16: =INDEX('LISTE DES TIREURS'!D$74:D$244,'FEUILLE D''INSCRIPTION'!S16) -> F57 / M | R16: =IF(S16<=1,"",COUNTIFS($S$7:$S$181,S16)) -> 1 | S16: 64 | T16: 2 | V16: 11
F17: =INDEX('LISTE DES TIREURS'!B$74:B$244,'FEUILLE D''INSCRIPTION'!S17) -> PICCAND VINCENT | G17: =INDEX('LISTE DES TIREURS'!C$74:C$244,'FEUILLE D''INSCRIPTION'!S17) -> 2000 | H17: =INDEX('FEUILLE D''INSCRIPTION'!U$7:U$15,'FEUILLE D''INSCRIPTION'!T17) -> ELITE | I17: =INDEX('LISTE DES TIREURS'!G$8:G$82,'FEUILLE D''INSCRIPTION'!V17) -> LA VUDALLA LMB | J17: XL | K17: 14 | L17: LIEBHERR MACHINES BULLE SA | M17: A | N17: =INDEX('LISTE DES TIREURS'!D$74:D$244,'FEUILLE D''INSCRIPTION'!S17) -> F90 | R17: 1 | S17: 80 | T17: 2 | V17: 11
F19: =INDEX('LISTE DES TIREURS'!B$74:B$244,'FEUILLE D''INSCRIPTION'!S19) -> FENELON ROBIN | G19: =INDEX('LISTE DES TIREURS'!C$74:C$244,'FEUILLE D''INSCRIPTION'!S19) -> 1989 | H19: =INDEX('FEUILLE D''INSCRIPTION'!U$7:U$15,'FEUILLE D''INSCRIPTION'!T19) -> ELITE | I19: =INDEX('LISTE DES TIREURS'!G$8:G$82,'FEUILLE D''INSCRIPTION'!V19) -> LA BERRA LMB | J19: XL | K19: 14 | L19: LIEBHERR MACHINES BULLE SA | M19: A | N19: =INDEX('LISTE DES TIREURS'!D$74:D$244,'FEUILLE D''INSCRIPTION'!S19) -> F90 | R19: =COUNTIFS($S$7:$S$181,S19) -> 1 | S19: 37 | T19: 2 | V19: 4
F20: =INDEX('LISTE DES TIREURS'!B$74:B$244,'FEUILLE D''INSCRIPTION'!S20) -> VIDEIRA LUIS | G20: =INDEX('LISTE DES TIREURS'!C$74:C$244,'FEUILLE D''INSCRIPTION'!S20) -> 1989 | H20: =INDEX('FEUILLE D''INSCRIPTION'!U$7:U$15,'FEUILLE D''INSCRIPTION'!T20) -> ELITE | I20: =INDEX('LISTE DES TIREURS'!G$8:G$82,'FEUILLE D''INSCRIPTION'!V20) -> LA BERRA LMB | J20: L | K20: 14 | L20: LIEBHERR MACHINES BULLE SA | M20: A | N20: =INDEX('LISTE DES TIREURS'!D$74:D$244,'FEUILLE D''INSCRIPTION'!S20) -> F90 | R20: =COUNTIFS($S$7:$S$181,S20) -> 1 | S20: 104 | T20: 2 | V20: 4
F21: =INDEX('LISTE DES TIREURS'!B$74:B$244,'FEUILLE D''INSCRIPTION'!S21) -> HENRY REGIS | G21: =INDEX('LISTE DES TIREURS'!C$74:C$244,'FEUILLE D''INSCRIPTION'!S21) -> 1989 | H21: =INDEX('FEUILLE D''INSCRIPTION'!U$7:U$15,'FEUILLE D''INSCRIPTION'!T21) -> DAME | I21: =INDEX('LISTE DES TIREURS'!G$8:G$82,'FEUILLE D''INSCRIPTION'!V21) -> LA BERRA LMB | J21: S | K21: 14 | L21: LIEBHERR MACHINES BULLE SA | M21: A | N21: =INDEX('LISTE DES TIREURS'!D$74:D$244,'FEUILLE D''INSCRIPTION'!S21) -> F90 | R21: =COUNTIFS($S$7:$S$181,S21) -> 1 | S21: 52 | T21: 5 | V21: 4
F22: =INDEX('LISTE DES TIREURS'!B$74:B$244,'FEUILLE D''INSCRIPTION'!S22) -> MENOUD SEBASTIEN | G22: =INDEX('LISTE DES TIREURS'!C$74:C$244,'FEUILLE D''INSCRIPTION'!S22) -> 1974 | H22: =INDEX('FEUILLE D''INSCRIPTION'!U$7:U$15,'FEUILLE D''INSCRIPTION'!T22) -> DAME | I22: =INDEX('LISTE DES TIREURS'!G$8:G$82,'FEUILLE D''INSCRIPTION'!V22) -> LA BERRA LMB | J22: M | K22: 14 | L22: LIEBHERR MACHINES BULLE SA | M22: A | N22: =INDEX('LISTE DES TIREURS'!D$74:D$244,'FEUILLE D''INSCRIPTION'!S22) -> F57 / M | R22: =IF(S22<=1,"",COUNTIFS($S$7:$S$181,S22)) -> 1 | S22: 70 | T22: 5 | V22: 4
F23: =INDEX('LISTE DES TIREURS'!B$74:B$244,'FEUILLE D''INSCRIPTION'!S23) -> PETITJEAN BRICE | G23: =INDEX('LISTE DES TIREURS'!C$74:C$244,'FEUILLE D''INSCRIPTION'!S23) -> 1990 | H23: =INDEX('FEUILLE D''INSCRIPTION'!U$7:U$15,'FEUILLE D''INSCRIPTION'!T23) -> DAME | I23: =INDEX('LISTE DES TIREURS'!G$8:G$82,'FEUILLE D''INSCRIPTION'!V23) -> LA BERRA LMB | J23: L | K23: 14 | L23: LIEBHERR MACHINES BULLE SA | M23: A | N23: =INDEX('LISTE DES TIREURS'!D$74:D$244,'FEUILLE D''INSCRIPTION'!S23) -> F90 | R23: 1 | S23: 79 | T23: 5 | V23: 4
F25: =INDEX('LISTE DES TIREURS'!B$74:B$244,'FEUILLE D''INSCRIPTION'!S25) -> HEINZL MICKAEL | G25: =INDEX('LISTE DES TIREURS'!C$74:C$244,'FEUILLE D''INSCRIPTION'!S25) -> 1972 | H25: =INDEX('FEUILLE D''INSCRIPTION'!U$7:U$15,'FEUILLE D''INSCRIPTION'!T25) -> ELITE | I25: =INDEX('LISTE DES TIREURS'!G$8:G$82,'FEUILLE D''INSCRIPTION'!V25) -> BIFFE LMB | J25: M | K25: 14 | L25: LIEBHERR MACHINES BULLE SA | M25: A | N25: =INDEX('LISTE DES TIREURS'!D$74:D$244,'FEUILLE D''INSCRIPTION'!S25) -> F90 | R25: =COUNTIFS($S$7:$S$181,S25) -> 1 | S25: 51 | T25: 2 | V25: 3
F26: =INDEX('LISTE DES TIREURS'!B$74:B$244,'FEUILLE D''INSCRIPTION'!S26) -> GALLAND MAXIME | G26: =INDEX('LISTE DES TIREURS'!C$74:C$244,'FEUILLE D''INSCRIPTION'!S26) -> 1987 | H26: =INDEX('FEUILLE D''INSCRIPTION'!U$7:U$15,'FEUILLE D''INSCRIPTION'!T26) -> ELITE | I26: =INDEX('LISTE DES TIREURS'!G$8:G$82,'FEUILLE D''INSCRIPTION'!V26) -> BIFFE LMB | J26: XL | K26: 14 | L26: LIEBHERR MACHINES BULLE SA | M26: A | N26: =INDEX('LISTE DES TIREURS'!D$74:D$244,'FEUILLE D''INSCRIPTION'!S26) -> F57 / M | R26: =COUNTIFS($S$7:$S$181,S26) -> 1 | S26: 45 | T26: 2 | V26: 3
F27: =INDEX('LISTE DES TIREURS'!B$74:B$244,'FEUILLE D''INSCRIPTION'!S27) -> MENDES DE BESSA JOSE CARLOS | G27: =INDEX('LISTE DES TIREURS'!C$74:C$244,'FEUILLE D''INSCRIPTION'!S27) -> 1993 | H27: =INDEX('FEUILLE D''INSCRIPTION'!U$7:U$15,'FEUILLE D''INSCRIPTION'!T27) -> ELITE | I27: =INDEX('LISTE DES TIREURS'!G$8:G$82,'FEUILLE D''INSCRIPTION'!V27) -> BIFFE LMB | J27: L | K27: 14 | L27: LIEBHERR MACHINES BULLE SA | M27: A | N27: =INDEX('LISTE DES TIREURS'!D$74:D$244,'FEUILLE D''INSCRIPTION'!S27) -> F90 | R27: =COUNTIFS($S$7:$S$181,S27) -> 1 | S27: 69 | T27: 2 | V27: 3
F28: =INDEX('LISTE DES TIREURS'!B$74:B$244,'FEUILLE D''INSCRIPTION'!S28) -> MASTROGUILIO ANTONIO | G28: =INDEX('LISTE DES TIREURS'!C$74:C$244,'FEUILLE D''INSCRIPTION'!S28) -> 1993 | H28: =INDEX('FEUILLE D''INSCRIPTION'!U$7:U$15,'FEUILLE D''INSCRIPTION'!T28) -> ELITE | I28: =INDEX('LISTE DES TIREURS'!G$8:G$82,'FEUILLE D''INSCRIPTION'!V28) -> BIFFE LMB | J28: M | K28: 14 | L28: LIEBHERR MACHINES BULLE SA | M28: A | N28: =INDEX('LISTE DES TIREURS'!D$74:D$244,'FEUILLE D''INSCRIPTION'!S28) -> F90 | R28: =IF(S28<=1,"",COUNTIFS($S$7:$S$181,S28)) -> 1 | S28: 66 | T28: 2 | V28: 3
F29: =INDEX('LISTE DES TIREURS'!B$74:B$244,'FEUILLE D''INSCRIPTION'!S29) -> WYSSMUELLER ALAIN | G29: =INDEX('LISTE DES TIREURS'!C$74:C$244,'FEUILLE D''INSCRIPTION'!S29) -> 1992 | H29: =INDEX('FEUILLE D''INSCRIPTION'!U$7:U$15,'FEUILLE D''INSCRIPTION'!T29) -> ELITE | I29: =INDEX('LISTE DES TIREURS'!G$8:G$82,'FEUILLE D''INSCRIPTION'!V29) -> BIFFE LMB | J29: L | K29: 14 | L29: LIEBHERR MACHINES BULLE SA | M29: A | N29: =INDEX('LISTE DES TIREURS'!D$74:D$244,'FEUILLE D''INSCRIPTION'!S29) -> F90 | R29: 1 | S29: 111 | T29: 2 | V29: 3
F31: =INDEX('LISTE DES TIREURS'!B$74:B$244,'FEUILLE D''INSCRIPTION'!S31) -> LARBI SAMUEL | G31: =INDEX('LISTE DES TIREURS'!C$74:C$244,'FEUILLE D''INSCRIPTION'!S31) -> 1990 | H31: =INDEX('FEUILLE D''INSCRIPTION'!U$7:U$15,'FEUILLE D''INSCRIPTION'!T31) -> ELITE | I31: =INDEX('LISTE DES TIREURS'!G$8:G$82,'FEUILLE D''INSCRIPTION'!V31) -> LA CHIA LMB | J31: =INDEX('LISTE DES TIREURS'!F$8:F$82,'FEUILLE D''INSCRIPTION'!V31) -> 0 | K31: 14 | L31: LIEBHERR MACHINES BULLE SA | M31: A | N31: =INDEX('LISTE DES TIREURS'!D$74:D$244,'FEUILLE D''INSCRIPTION'!S31) -> F57 / M | R31: =COUNTIFS($S$7:$S$181,S31) -> 1 | S31: 59 | T31: 2 | V31: 5
F32: =INDEX('LISTE DES TIREURS'!B$74:B$244,'FEUILLE D''INSCRIPTION'!S32) -> BORCARD GILLES | G32: =INDEX('LISTE DES TIREURS'!C$74:C$244,'FEUILLE D''INSCRIPTION'!S32) -> 0 | H32: =INDEX('FEUILLE D''INSCRIPTION'!U$7:U$15,'FEUILLE D''INSCRIPTION'!T32) -> ELITE | I32: =INDEX('LISTE DES TIREURS'!G$8:G$82,'FEUILLE D''INSCRIPTION'!V32) -> LA CHIA LMB | J32: M | K32: 14 | L32: LIEBHERR MACHINES BULLE SA | M32: A | N32: =INDEX('LISTE DES TIREURS'!D$74:D$244,'FEUILLE D''INSCRIPTION'!S32) -> F90 | R32: =COUNTIFS($S$7:$S$181,S32) -> 1 | S32: 17 | T32: 2 | V32: 5
F33: =INDEX('LISTE DES TIREURS'!B$74:B$244,'FEUILLE D''INSCRIPTION'!S33) -> DEFFERARD VALENTIN | G33: =INDEX('LISTE DES TIREURS'!C$74:C$244,'FEUILLE D''INSCRIPTION'!S33) -> 1992 | H33: =INDEX('FEUILLE D''INSCRIPTION'!U$7:U$15,'FEUILLE D''INSCRIPTION'!T33) -> ELITE | I33: =INDEX('LISTE DES TIREURS'!G$8:G$82,'FEUILLE D''INSCRIPTION'!V33) -> LA CHIA LMB | J33: L | K33: 14 | L33: LIEBHERR MACHINES BULLE SA | M33: A | N33: =INDEX('LISTE DES TIREURS'!D$74:D$244,'FEUILLE D''INSCRIPTION'!S33) -> F90 | R33: =COUNTIFS($S$7:$S$181,S33) -> 1 | S33: 28 | T33: 2 | V33: 5
F34: =INDEX('LISTE DES TIREURS'!B$74:B$244,'FEUILLE D''INSCRIPTION'!S34) -> MORISSET ALEXANDRE | G34: =INDEX('LISTE DES TIREURS'!C$74:C$244,'FEUILLE D''INSCRIPTION'!S34) -> 1974 | H34: =INDEX('FEUILLE D''INSCRIPTION'!U$7:U$15,'FEUILLE D''INSCRIPTION'!T34) -> ELITE | I34: =INDEX('LISTE DES TIREURS'!G$8:G$82,'FEUILLE D''INSCRIPTION'!V34) -> LA CHIA LMB | J34: M | K34: 14 | L34: LIEBHERR MACHINES BULLE SA | M34: A | N34: =INDEX('LISTE DES TIREURS'!D$74:D$244,'FEUILLE D''INSCRIPTION'!S34) -> F90 | R34: =IF(S34<=1,"",COUNTIFS($S$7:$S$181,S34)) -> 1 | S34: 74 | T34: 2 | V34: 5
F35: =INDEX('LISTE DES TIREURS'!B$74:B$244,'FEUILLE D''INSCRIPTION'!S35) -> TOUCHEFEU THIBAUT | G35: =INDEX('LISTE DES TIREURS'!C$74:C$244,'FEUILLE D''INSCRIPTION'!S35) -> 1986 | H35: =INDEX('FEUILLE D''INSCRIPTION'!U$7:U$15,'FEUILLE D''INSCRIPTION'!T35) -> ELITE | I35: =INDEX('LISTE DES TIREURS'!G$8:G$82,'FEUILLE D''INSCRIPTION'!V35) -> LA CHIA LMB | J35: =INDEX('LISTE DES TIREURS'!F$8:F$82,'FEUILLE D''INSCRIPTION'!V35) -> 0 | K35: 14 | L35: LIEBHERR MACHINES BULLE SA | M35: A | N35: =INDEX('LISTE DES TIREURS'!D$74:D$244,'FEUILLE D''INSCRIPTION'!S35) -> F90 | R35: 1 | S35: 99 | T35: 2 | V35: 5
F37: =INDEX('LISTE DES TIREURS'!B$74:B$244,'FEUILLE D''INSCRIPTION'!S37) -> AKROUT SAMIR | G37: =INDEX('LISTE DES TIREURS'!C$74:C$244,'FEUILLE D''INSCRIPTION'!S37) -> 1974 | H37: =INDEX('FEUILLE D''INSCRIPTION'!U$7:U$15,'FEUILLE D''INSCRIPTION'!T37) -> ELITE | I37: =INDEX('LISTE DES TIREURS'!G$8:G$82,'FEUILLE D''INSCRIPTION'!V37) -> LE VANIL NOIR LMB | J37: XL | K37: 14 | L37: LIEBHERR MACHINES BULLE SA | M37: A | N37: =INDEX('LISTE DES TIREURS'!D$74:D$244,'FEUILLE D''INSCRIPTION'!S37) -> F90 | R37: =COUNTIFS($S$7:$S$181,S37) -> 1 | S37: 3 | T37: 2 | V37: 17
F38: =INDEX('LISTE DES TIREURS'!B$74:B$244,'FEUILLE D''INSCRIPTION'!S38) -> ALTINIER BENOIT | G38: =INDEX('LISTE DES TIREURS'!C$74:C$244,'FEUILLE D''INSCRIPTION'!S38) -> 1983 | H38: =INDEX('FEUILLE D''INSCRIPTION'!U$7:U$15,'FEUILLE D''INSCRIPTION'!T38) -> ELITE | I38: =INDEX('LISTE DES TIREURS'!G$8:G$82,'FEUILLE D''INSCRIPTION'!V38) -> LE VANIL NOIR LMB | J38: L | K38: 14 | L38: LIEBHERR MACHINES BULLE SA | M38: A | N38: =INDEX('LISTE DES TIREURS'!D$74:D$244,'FEUILLE D''INSCRIPTION'!S38) -> F90 | R38: =COUNTIFS($S$7:$S$181,S38) -> 1 | S38: 4 | T38: 2 | V38: 17
F39: =INDEX('LISTE DES TIREURS'!B$74:B$244,'FEUILLE D''INSCRIPTION'!S39) -> ANDRE BENJAMIN | G39: =INDEX('LISTE DES TIREURS'!C$74:C$244,'FEUILLE D''INSCRIPTION'!S39) -> 1988 | H39: =INDEX('FEUILLE D''INSCRIPTION'!U$7:U$15,'FEUILLE D''INSCRIPTION'!T39) -> ELITE | I39: =INDEX('LISTE DES TIREURS'!G$8:G$82,'FEUILLE D''INSCRIPTION'!V39) -> LE VANIL NOIR LMB | J39: XL | K39: 14 | L39: LIEBHERR MACHINES BULLE SA | M39: A | N39: =INDEX('LISTE DES TIREURS'!D$74:D$244,'FEUILLE D''INSCRIPTION'!S39) -> F90 | R39: =COUNTIFS($S$7:$S$181,S39) -> 1 | S39: 5 | T39: 2 | V39: 17
F40: =INDEX('LISTE DES TIREURS'!B$74:B$244,'FEUILLE D''INSCRIPTION'!S40) -> CHATAGNY GAETAN | G40: =INDEX('LISTE DES TIREURS'!C$74:C$244,'FEUILLE D''INSCRIPTION'!S40) -> 1975 | H40: =INDEX('FEUILLE D''INSCRIPTION'!U$7:U$15,'FEUILLE D''INSCRIPTION'!T40) -> ELITE | I40: =INDEX('LISTE DES TIREURS'!G$8:G$82,'FEUILLE D''INSCRIPTION'!V40) -> LE VANIL NOIR LMB | J40: =INDEX('LISTE DES TIREURS'!F$8:F$82,'FEUILLE D''INSCRIPTION'!V40) -> 0 | K40: 14 | L40: LIEBHERR MACHINES BULLE SA | M40: A | N40: =INDEX('LISTE DES TIREURS'!D$74:D$244,'FEUILLE D''INSCRIPTION'!S40) -> F90 | R40: =IF(S40<=1,"",COUNTIFS($S$7:$S$181,S40)) -> 1 | S40: 20 | T40: 2 | V40: 17
F41: =INDEX('LISTE DES TIREURS'!B$74:B$244,'FEUILLE D''INSCRIPTION'!S41) -> GENTILE NICOLAS | G41: =INDEX('LISTE DES TIREURS'!C$74:C$244,'FEUILLE D''INSCRIPTION'!S41) -> 1987 | H41: =INDEX('FEUILLE D''INSCRIPTION'!U$7:U$15,'FEUILLE D''INSCRIPTION'!T41) -> ELITE | I41: =INDEX('LISTE DES TIREURS'!G$8:G$82,'FEUILLE D''INSCRIPTION'!V41) -> LE VANIL NOIR LMB | J41: =INDEX('LISTE DES TIREURS'!F$8:F$82,'FEUILLE D''INSCRIPTION'!V41) -> 0 | K41: 14 | L41: LIEBHERR MACHINES BULLE SA | M41: A | N41: =INDEX('LISTE DES TIREURS'!D$74:D$244,'FEUILLE D''INSCRIPTION'!S41) -> F90 | R41: 1 | S41: 47 | T41: 2 | V41: 17
F43: =INDEX('LISTE DES TIREURS'!B$74:B$244,'FEUILLE D''INSCRIPTION'!S43) -> BAUDOIS JULIEN | G43: =INDEX('LISTE DES TIREURS'!C$74:C$244,'FEUILLE D''INSCRIPTION'!S43) -> 1985 | H43: =INDEX('FEUILLE D''INSCRIPTION'!U$7:U$15,'FEUILLE D''INSCRIPTION'!T43) -> ELITE | I43: =INDEX('LISTE DES TIREURS'!G$8:G$82,'FEUILLE D''INSCRIPTION'!V43) -> LES MERLAS LMB | J43: M | K43: 14 | L43: LIEBHERR MACHINES BULLE SA | M43: A | N43: =INDEX('LISTE DES TIREURS'!D$74:D$244,'FEUILLE D''INSCRIPTION'!S43) -> F90 | R43: =COUNTIFS($S$7:$S$181,S43) -> 1 | S43: 10 | T43: 2 | V43: 19
F44: =INDEX('LISTE DES TIREURS'!B$74:B$244,'FEUILLE D''INSCRIPTION'!S44) -> 0 | G44: =INDEX('LISTE DES TIREURS'!C$74:C$244,'FEUILLE D''INSCRIPTION'!S44) -> 0 | H44: =INDEX('FEUILLE D''INSCRIPTION'!U$7:U$15,'FEUILLE D''INSCRIPTION'!T44) -> ELITE | I44: =INDEX('LISTE DES TIREURS'!G$8:G$82,'FEUILLE D''INSCRIPTION'!V44) -> LES MERLAS LMB | J44: M | N44: =INDEX('LISTE DES TIREURS'!D$74:D$244,'FEUILLE D''INSCRIPTION'!S44) -> 0 | R44: =COUNTIFS($S$7:$S$181,S44) -> 1 | S44: 130 | T44: 2 | V44: 19
F45: =INDEX('LISTE DES TIREURS'!B$74:B$244,'FEUILLE D''INSCRIPTION'!S45) -> DUPONT MICHEL | G45: =INDEX('LISTE DES TIREURS'!C$74:C$244,'FEUILLE D''INSCRIPTION'!S45) -> 1969 | H45: =INDEX('FEUILLE D''INSCRIPTION'!U$7:U$15,'FEUILLE D''INSCRIPTION'!T45) -> ELITE | I45: =INDEX('LISTE DES TIREURS'!G$8:G$82,'FEUILLE D''INSCRIPTION'!V45) -> LES MERLAS LMB | J45: XL | K45: 14 | L45: LIEBHERR MACHINES BULLE SA | M45: A | N45: =INDEX('LISTE DES TIREURS'!D$74:D$244,'FEUILLE D''INSCRIPTION'!S45) -> F90 | R45: =COUNTIFS($S$7:$S$181,S45) -> 1 | S45: 33 | T45: 2 | V45: 19
F46: =INDEX('LISTE DES TIREURS'!B$74:B$244,'FEUILLE D''INSCRIPTION'!S46) -> UTZ MARTIAL | G46: =INDEX('LISTE DES TIREURS'!C$74:C$244,'FEUILLE D''INSCRIPTION'!S46) -> 1971 | H46: =INDEX('FEUILLE D''INSCRIPTION'!U$7:U$15,'FEUILLE D''INSCRIPTION'!T46) -> ELITE | I46: =INDEX('LISTE DES TIREURS'!G$8:G$82,'FEUILLE D''INSCRIPTION'!V46) -> LES MERLAS LMB | J46: M | K46: 14 | L46: LIEBHERR MACHINES BULLE SA | M46: A | N46: =INDEX('LISTE DES TIREURS'!D$74:D$244,'FEUILLE D''INSCRIPTION'!S46) -> F90 | R46: =IF(S46<=1,"",COUNTIFS($S$7:$S$181,S46)) -> 1 | S46: 103 | T46: 2 | V46: 19
F47: =INDEX('LISTE DES TIREURS'!B$74:B$244,'FEUILLE D''INSCRIPTION'!S47) -> SPINELLI SOPHIE | G47: =INDEX('LISTE DES TIREURS'!C$74:C$244,'FEUILLE D''INSCRIPTION'!S47) -> 1980 | H47: =INDEX('FEUILLE D''INSCRIPTION'!U$7:U$15,'FEUILLE D''INSCRIPTION'!T47) -> ELITE | I47: =INDEX('LISTE DES TIREURS'!G$8:G$82,'FEUILLE D''INSCRIPTION'!V47) -> LES MERLAS LMB | J47: L | K47: 14 | L47: LIEBHERR MACHINES BULLE SA | M47: A | N47: =INDEX('LISTE DES TIREURS'!D$74:D$244,'FEUILLE D''INSCRIPTION'!S47) -> F90 | R47: 1 | S47: 92 | T47: 2 | V47: 19
F49: =INDEX('LISTE DES TIREURS'!B$74:B$244,'FEUILLE D''INSCRIPTION'!S49) -> THARMANANDA THARMANISHANTH | G49: =INDEX('LISTE DES TIREURS'!C$74:C$244,'FEUILLE D''INSCRIPTION'!S49) -> 1990 | H49: =INDEX('FEUILLE D''INSCRIPTION'!U$7:U$15,'FEUILLE D''INSCRIPTION'!T49) -> ELITE | I49: =INDEX('LISTE DES TIREURS'!G$8:G$82,'FEUILLE D''INSCRIPTION'!V49) -> LE COUSIMBERT LMB | J49: L | K49: 14 | L49: LIEBHERR MACHINES BULLE SA | M49: A | N49: =INDEX('LISTE DES TIREURS'!D$74:D$244,'FEUILLE D''INSCRIPTION'!S49) -> F90 | R49: =COUNTIFS($S$7:$S$181,S49) -> 1 | S49: 97 | T49: 2 | V49: 12
F50: =INDEX('LISTE DES TIREURS'!B$74:B$244,'FEUILLE D''INSCRIPTION'!S50) -> GACHOUD VINCENT | G50: =INDEX('LISTE DES TIREURS'!C$74:C$244,'FEUILLE D''INSCRIPTION'!S50) -> 1991 | H50: =INDEX('FEUILLE D''INSCRIPTION'!U$7:U$15,'FEUILLE D''INSCRIPTION'!T50) -> ELITE | I50: =INDEX('LISTE DES TIREURS'!G$8:G$82,'FEUILLE D''INSCRIPTION'!V50) -> LE COUSIMBERT LMB | J50: M | K50: 14 | L50: LIEBHERR MACHINES BULLE SA | M50: A | N50: =INDEX('LISTE DES TIREURS'!D$74:D$244,'FEUILLE D''INSCRIPTION'!S50) -> F57 / M | R50: =COUNTIFS($S$7:$S$181,S50) -> 1 | S50: 41 | T50: 2 | V50: 12
F51: =INDEX('LISTE DES TIREURS'!B$74:B$244,'FEUILLE D''INSCRIPTION'!S51) -> WINKLER ANDREAS | G51: =INDEX('LISTE DES TIREURS'!C$74:C$244,'FEUILLE D''INSCRIPTION'!S51) -> 1982 | H51: =INDEX('FEUILLE D''INSCRIPTION'!U$7:U$15,'FEUILLE D''INSCRIPTION'!T51) -> ELITE | I51: =INDEX('LISTE DES TIREURS'!G$8:G$82,'FEUILLE D''INSCRIPTION'!V51) -> LE COUSIMBERT LMB | J51: L | K51: 14 | L51: LIEBHERR MACHINES BULLE SA | M51: A | N51: =INDEX('LISTE DES TIREURS'!D$74:D$244,'FEUILLE D''INSCRIPTION'!S51) -> F90 | R51: =COUNTIFS($S$7:$S$181,S51) -> 1 | S51: 108 | T51: 2 | V51: 12
F52: =INDEX('LISTE DES TIREURS'!B$74:B$244,'FEUILLE D''INSCRIPTION'!S52) -> KENFAR AMAR | G52: =INDEX('LISTE DES TIREURS'!C$74:C$244,'FEUILLE D''INSCRIPTION'!S52) -> 1975 | H52: =INDEX('FEUILLE D''INSCRIPTION'!U$7:U$15,'FEUILLE D''INSCRIPTION'!T52) -> ELITE | I52: =INDEX('LISTE DES TIREURS'!G$8:G$82,'FEUILLE D''INSCRIPTION'!V52) -> LE COUSIMBERT LMB | J52: M | K52: 14 | L52: LIEBHERR MACHINES BULLE SA | M52: A | N52: =INDEX('LISTE DES TIREURS'!D$74:D$244,'FEUILLE D''INSCRIPTION'!S52) -> F90 | R52: =IF(S52<=1,"",COUNTIFS($S$7:$S$181,S52)) -> 1 | S52: 57 | T52: 2 | V52: 12
F53: =INDEX('LISTE DES TIREURS'!B$74:B$244,'FEUILLE D''INSCRIPTION'!S53) -> ROUX STEFAN | G53: =INDEX('LISTE DES TIREURS'!C$74:C$244,'FEUILLE D''INSCRIPTION'!S53) -> 1964 | H53: =INDEX('FEUILLE D''INSCRIPTION'!U$7:U$15,'FEUILLE D''INSCRIPTION'!T53) -> ELITE | I53: =INDEX('LISTE DES TIREURS'!G$8:G$82,'FEUILLE D''INSCRIPTION'!V53) -> LE COUSIMBERT LMB | J53: =INDEX('LISTE DES TIREURS'!F$8:F$82,'FEUILLE D''INSCRIPTION'!V53) -> 0 | K53: 14 | L53: LIEBHERR MACHINES BULLE SA | M53: A | N53: =INDEX('LISTE DES TIREURS'!D$74:D$244,'FEUILLE D''INSCRIPTION'!S53) -> F90 | R53: 1 | S53: 88 | T53: 2 | V53: 12
F55: =INDEX('LISTE DES TIREURS'!B$74:B$244,'FEUILLE D''INSCRIPTION'!S55) -> WALCH JORIS | G55: =INDEX('LISTE DES TIREURS'!C$74:C$244,'FEUILLE D''INSCRIPTION'!S55) -> 1989 | H55: =INDEX('FEUILLE D''INSCRIPTION'!U$7:U$15,'FEUILLE D''INSCRIPTION'!T55) -> ELITE | I55: =INDEX('LISTE DES TIREURS'!G$8:G$82,'FEUILLE D''INSCRIPTION'!V55) -> LES PORTES LMB | J55: S | K55: 14 | L55: LIEBHERR MACHINES BULLE SA | M55: A | N55: =INDEX('LISTE DES TIREURS'!D$74:D$244,'FEUILLE D''INSCRIPTION'!S55) -> F90 | R55: =COUNTIFS($S$7:$S$181,S55) -> 1 | S55: 106 | T55: 2 | V55: 20
F56: =INDEX('LISTE DES TIREURS'!B$74:B$244,'FEUILLE D''INSCRIPTION'!S56) -> WINKWORTH JAMES | G56: =INDEX('LISTE DES TIREURS'!C$74:C$244,'FEUILLE D''INSCRIPTION'!S56) -> 1996 | H56: =INDEX('FEUILLE D''INSCRIPTION'!U$7:U$15,'FEUILLE D''INSCRIPTION'!T56) -> ELITE | I56: =INDEX('LISTE DES TIREURS'!G$8:G$82,'FEUILLE D''INSCRIPTION'!V56) -> LES PORTES LMB | J56: M | K56: 14 | L56: LIEBHERR MACHINES BULLE SA | M56: A | N56: =INDEX('LISTE DES TIREURS'!D$74:D$244,'FEUILLE D''INSCRIPTION'!S56) -> F90 | R56: =COUNTIFS($S$7:$S$181,S56) -> 1 | S56: 109 | T56: 2 | V56: 20
F57: =INDEX('LISTE DES TIREURS'!B$74:B$244,'FEUILLE D''INSCRIPTION'!S57) -> MENOUD SONJA | G57: =INDEX('LISTE DES TIREURS'!C$74:C$244,'FEUILLE D''INSCRIPTION'!S57) -> 1952 | H57: =INDEX('FEUILLE D''INSCRIPTION'!U$7:U$15,'FEUILLE D''INSCRIPTION'!T57) -> ELITE | I57: =INDEX('LISTE DES TIREURS'!G$8:G$82,'FEUILLE D''INSCRIPTION'!V57) -> LES PORTES LMB | J57: L | K57: 14 | L57: LIEBHERR MACHINES BULLE SA | M57: A | N57: =INDEX('LISTE DES TIREURS'!D$74:D$244,'FEUILLE D''INSCRIPTION'!S57) -> F90 | R57: =COUNTIFS($S$7:$S$181,S57) -> 1 | S57: 71 | T57: 2 | V57: 20
F58: =INDEX('LISTE DES TIREURS'!B$74:B$244,'FEUILLE D''INSCRIPTION'!S58) -> FERRARI WILLIAM | G58: =INDEX('LISTE DES TIREURS'!C$74:C$244,'FEUILLE D''INSCRIPTION'!S58) -> 1970 | H58: =INDEX('FEUILLE D''INSCRIPTION'!U$7:U$15,'FEUILLE D''INSCRIPTION'!T58) -> ELITE | I58: =INDEX('LISTE DES TIREURS'!G$8:G$82,'FEUILLE D''INSCRIPTION'!V58) -> LES PORTES LMB | J58: L | K58: 14 | L58: LIEBHERR MACHINES BULLE SA | M58: A | N58: =INDEX('LISTE DES TIREURS'!D$74:D$244,'FEUILLE D''INSCRIPTION'!S58) -> F90 | R58: =IF(S58<=1,"",COUNTIFS($S$7:$S$181,S58)) -> 1 | S58: 38 | T58: 2 | V58: 20
F59: =INDEX('LISTE DES TIREURS'!B$74:B$244,'FEUILLE D''INSCRIPTION'!S59) -> 0 | G59: =INDEX('LISTE DES TIREURS'!C$74:C$244,'FEUILLE D''INSCRIPTION'!S59) -> 0 | H59: =INDEX('FEUILLE D''INSCRIPTION'!U$7:U$15,'FEUILLE D''INSCRIPTION'!T59) -> ELITE | I59: =INDEX('LISTE DES TIREURS'!G$8:G$82,'FEUILLE D''INSCRIPTION'!V59) -> LES PORTES LMB | J59: L | N59: =INDEX('LISTE DES TIREURS'!D$74:D$244,'FEUILLE D''INSCRIPTION'!S59) -> 0 | R59: 1 | S59: 127 | T59: 2 | V59: 20
F61: =INDEX('LISTE DES TIREURS'!B$74:B$244,'FEUILLE D''INSCRIPTION'!S61) -> 0 | G61: =INDEX('LISTE DES TIREURS'!C$74:C$244,'FEUILLE D''INSCRIPTION'!S61) -> 0 | H61: =INDEX('FEUILLE D''INSCRIPTION'!U$7:U$15,'FEUILLE D''INSCRIPTION'!T61) -> ELITE | I61: =INDEX('LISTE DES TIREURS'!G$8:G$82,'FEUILLE D''INSCRIPTION'!V61) -> LE VANIL DE L'ECRI LMB | J61: XL | N61: =INDEX('LISTE DES TIREURS'!D$74:D$244,'FEUILLE D''INSCRIPTION'!S61) -> 0 | R61: =COUNTIFS($S$7:$S$181,S61) -> 1 | S61: 131 | T61: 2 | V61: 16
F62: =INDEX('LISTE DES TIREURS'!B$74:B$244,'FEUILLE D''INSCRIPTION'!S62) -> FUGA REXHEP | G62: =INDEX('LISTE DES TIREURS'!C$74:C$244,'FEUILLE D''INSCRIPTION'!S62) -> 1993 | H62: =INDEX('FEUILLE D''INSCRIPTION'!U$7:U$15,'FEUILLE D''INSCRIPTION'!T62) -> ELITE | I62: =INDEX('LISTE DES TIREURS'!G$8:G$82,'FEUILLE D''INSCRIPTION'!V62) -> LE VANIL DE L'ECRI LMB | J62: XL | K62: 14 | L62: LIEBHERR MACHINES BULLE SA | M62: A | N62: =INDEX('LISTE DES TIREURS'!D$74:D$244,'FEUILLE D''INSCRIPTION'!S62) -> F90 | R62: =COUNTIFS($S$7:$S$181,S62) -> 1 | S62: 40 | T62: 2 | V62: 16
F63: =INDEX('LISTE DES TIREURS'!B$74:B$244,'FEUILLE D''INSCRIPTION'!S63) -> LEONARD DAMIEN | G63: =INDEX('LISTE DES TIREURS'!C$74:C$244,'FEUILLE D''INSCRIPTION'!S63) -> 1993 | H63: =INDEX('FEUILLE D''INSCRIPTION'!U$7:U$15,'FEUILLE D''INSCRIPTION'!T63) -> ELITE | I63: =INDEX('LISTE DES TIREURS'!G$8:G$82,'FEUILLE D''INSCRIPTION'!V63) -> LE VANIL DE L'ECRI LMB | J63: =INDEX('LISTE DES TIREURS'!F$8:F$82,'FEUILLE D''INSCRIPTION'!V63) -> 0 | K63: 14 | L63: LIEBHERR MACHINES BULLE SA | M63: A | N63: =INDEX('LISTE DES TIREURS'!D$74:D$244,'FEUILLE D''INSCRIPTION'!S63) -> F90 | R63: =COUNTIFS($S$7:$S$181,S63) -> 1 | S63: 60 | T63: 2 | V63: 16
F64: =INDEX('LISTE DES TIREURS'!B$74:B$244,'FEUILLE D''INSCRIPTION'!S64) -> LETANG LUDOVIC | G64: =INDEX('LISTE DES TIREURS'!C$74:C$244,'FEUILLE D''INSCRIPTION'!S64) -> 0 | H64: =INDEX('FEUILLE D''INSCRIPTION'!U$7:U$15,'FEUILLE D''INSCRIPTION'!T64) -> ELITE | I64: =INDEX('LISTE DES TIREURS'!G$8:G$82,'FEUILLE D''INSCRIPTION'!V64) -> LE VANIL DE L'ECRI LMB | J64: M | K64: 14 | L64: LIEBHERR MACHINES BULLE SA | M64: A | N64: =INDEX('LISTE DES TIREURS'!D$74:D$244,'FEUILLE D''INSCRIPTION'!S64) -> F90 | R64: =IF(S64<=1,"",COUNTIFS($S$7:$S$181,S64)) -> 1 | S64: 61 | T64: 2 | V64: 16
F65: =INDEX('LISTE DES TIREURS'!B$74:B$244,'FEUILLE D''INSCRIPTION'!S65) -> SOULIER PIERRE | G65: =INDEX('LISTE DES TIREURS'!C$74:C$244,'FEUILLE D''INSCRIPTION'!S65) -> 1989 | H65: =INDEX('FEUILLE D''INSCRIPTION'!U$7:U$15,'FEUILLE D''INSCRIPTION'!T65) -> ELITE | I65: =INDEX('LISTE DES TIREURS'!G$8:G$82,'FEUILLE D''INSCRIPTION'!V65) -> LE VANIL DE L'ECRI LMB | J65: L | K65: 14 | L65: LIEBHERR MACHINES BULLE SA | M65: A | N65: =INDEX('LISTE DES TIREURS'!D$74:D$244,'FEUILLE D''INSCRIPTION'!S65) -> F90 | R65: 1 | S65: 90 | T65: 2 | V65: 16
F67: =INDEX('LISTE DES TIREURS'!B$74:B$244,'FEUILLE D''INSCRIPTION'!S67) -> WIRTHS STEFAN | G67: =INDEX('LISTE DES TIREURS'!C$74:C$244,'FEUILLE D''INSCRIPTION'!S67) -> 1984 | H67: =INDEX('FEUILLE D''INSCRIPTION'!U$7:U$15,'FEUILLE D''INSCRIPTION'!T67) -> ELITE | I67: =INDEX('LISTE DES TIREURS'!G$8:G$82,'FEUILLE D''INSCRIPTION'!V67) -> LA DENT DE BROC LMB | J67: M | K67: 14 | L67: LIEBHERR MACHINES BULLE SA | M67: A | N67: =INDEX('LISTE DES TIREURS'!D$74:D$244,'FEUILLE D''INSCRIPTION'!S67) -> F90 | R67: =COUNTIFS($S$7:$S$181,S67) -> 1 | S67: 110 | T67: 2 | V67: 6
F68: =INDEX('LISTE DES TIREURS'!B$74:B$244,'FEUILLE D''INSCRIPTION'!S68) -> BERGER JEAN-PHILIPPE | G68: =INDEX('LISTE DES TIREURS'!C$74:C$244,'FEUILLE D''INSCRIPTION'!S68) -> 1975 | H68: =INDEX('FEUILLE D''INSCRIPTION'!U$7:U$15,'FEUILLE D''INSCRIPTION'!T68) -> ELITE | I68: =INDEX('LISTE DES TIREURS'!G$8:G$82,'FEUILLE D''INSCRIPTION'!V68) -> LA DENT DE BROC LMB | J68: M | K68: 14 | L68: LIEBHERR MACHINES BULLE SA | M68: A | N68: =INDEX('LISTE DES TIREURS'!D$74:D$244,'FEUILLE D''INSCRIPTION'!S68) -> F90 | R68: =COUNTIFS($S$7:$S$181,S68) -> 1 | S68: 13 | T68: 2 | V68: 6
F69: =INDEX('LISTE DES TIREURS'!B$74:B$244,'FEUILLE D''INSCRIPTION'!S69) -> MORENO MARK | G69: =INDEX('LISTE DES TIREURS'!C$74:C$244,'FEUILLE D''INSCRIPTION'!S69) -> 1985 | H69: =INDEX('FEUILLE D''INSCRIPTION'!U$7:U$15,'FEUILLE D''INSCRIPTION'!T69) -> ELITE | I69: =INDEX('LISTE DES TIREURS'!G$8:G$82,'FEUILLE D''INSCRIPTION'!V69) -> LA DENT DE BROC LMB | J69: =INDEX('LISTE DES TIREURS'!F$8:F$82,'FEUILLE D''INSCRIPTION'!V69) -> 0 | K69: 14 | L69: LIEBHERR MACHINES BULLE SA | M69: A | N69: =INDEX('LISTE DES TIREURS'!D$74:D$244,'FEUILLE D''INSCRIPTION'!S69) -> F90 | R69: =COUNTIFS($S$7:$S$181,S69) -> 1 | S69: 73 | T69: 2 | V69: 6
F70: =INDEX('LISTE DES TIREURS'!B$74:B$244,'FEUILLE D''INSCRIPTION'!S70) -> MOURA OLIVIER | G70: =INDEX('LISTE DES TIREURS'!C$74:C$244,'FEUILLE D''INSCRIPTION'!S70) -> 1965 | H70: =INDEX('FEUILLE D''INSCRIPTION'!U$7:U$15,'FEUILLE D''INSCRIPTION'!T70) -> ELITE | I70: =INDEX('LISTE DES TIREURS'!G$8:G$82,'FEUILLE D''INSCRIPTION'!V70) -> LA DENT DE BROC LMB | J70: S | K70: 14 | L70: LIEBHERR MACHINES BULLE SA | M70: A | N70: =INDEX('LISTE DES TIREURS'!D$74:D$244,'FEUILLE D''INSCRIPTION'!S70) -> F90 | R70: =IF(S70<=1,"",COUNTIFS($S$7:$S$181,S70)) -> 1 | S70: 75 | T70: 2 | V70: 6
F71: =INDEX('LISTE DES TIREURS'!B$74:B$244,'FEUILLE D''INSCRIPTION'!S71) -> CURRAT JEAN-MICHEL | G71: =INDEX('LISTE DES TIREURS'!C$74:C$244,'FEUILLE D''INSCRIPTION'!S71) -> 1962 | H71: =INDEX('FEUILLE D''INSCRIPTION'!U$7:U$15,'FEUILLE D''INSCRIPTION'!T71) -> ELITE | I71: =INDEX('LISTE DES TIREURS'!G$8:G$82,'FEUILLE D''INSCRIPTION'!V71) -> LA DENT DE BROC LMB | J71: L | K71: 14 | L71: LIEBHERR MACHINES BULLE SA | M71: A | N71: =INDEX('LISTE DES TIREURS'!D$74:D$244,'FEUILLE D''INSCRIPTION'!S71) -> F90 | R71: 1 | S71: 26 | T71: 2 | V71: 6
F73: =INDEX('LISTE DES TIREURS'!B$74:B$244,'FEUILLE D''INSCRIPTION'!S73) -> ZUENDORF ECKEHARD | G73: =INDEX('LISTE DES TIREURS'!C$74:C$244,'FEUILLE D''INSCRIPTION'!S73) -> 1970 | H73: =INDEX('FEUILLE D''INSCRIPTION'!U$7:U$15,'FEUILLE D''INSCRIPTION'!T73) -> ELITE | I73: =INDEX('LISTE DES TIREURS'!G$8:G$82,'FEUILLE D''INSCRIPTION'!V73) -> LE VANIL CARRE LMB | J73: XXL | K73: =IF(F73>0,$I$3,"") -> 14 | L73: =IF(F73>0,$F$2,"") -> LIEBHERR MACHINES BULLE SA | M73: =IF(F73>0,$G$3,"") -> A | N73: =INDEX('LISTE DES TIREURS'!D$74:D$244,'FEUILLE D''INSCRIPTION'!S73) -> F90 | R73: =COUNTIFS($S$7:$S$181,S73) -> 1 | S73: 115 | T73: 2 | V73: 15
F74: =INDEX('LISTE DES TIREURS'!B$74:B$244,'FEUILLE D''INSCRIPTION'!S74) -> HURUGLICA ARBER | G74: =INDEX('LISTE DES TIREURS'!C$74:C$244,'FEUILLE D''INSCRIPTION'!S74) -> 1993 | H74: =INDEX('FEUILLE D''INSCRIPTION'!U$7:U$15,'FEUILLE D''INSCRIPTION'!T74) -> ELITE | I74: =INDEX('LISTE DES TIREURS'!G$8:G$82,'FEUILLE D''INSCRIPTION'!V74) -> LE VANIL CARRE LMB | J74: L | K74: 14 | L74: LIEBHERR MACHINES BULLE SA | M74: A | N74: =INDEX('LISTE DES TIREURS'!D$74:D$244,'FEUILLE D''INSCRIPTION'!S74) -> F90 | R74: =COUNTIFS($S$7:$S$181,S74) -> 1 | S74: 53 | T74: 2 | V74: 15
F75: =INDEX('LISTE DES TIREURS'!B$74:B$244,'FEUILLE D''INSCRIPTION'!S75) -> NJOH JEAN-ROBERT | G75: =INDEX('LISTE DES TIREURS'!C$74:C$244,'FEUILLE D''INSCRIPTION'!S75) -> 1980 | H75: =INDEX('FEUILLE D''INSCRIPTION'!U$7:U$15,'FEUILLE D''INSCRIPTION'!T75) -> ELITE | I75: =INDEX('LISTE DES TIREURS'!G$8:G$82,'FEUILLE D''INSCRIPTION'!V75) -> LE VANIL CARRE LMB | J75: =INDEX('LISTE DES TIREURS'!F$8:F$82,'FEUILLE D''INSCRIPTION'!V75) -> 0 | K75: 14 | L75: LIEBHERR MACHINES BULLE SA | M75: A | N75: =INDEX('LISTE DES TIREURS'!D$74:D$244,'FEUILLE D''INSCRIPTION'!S75) -> F90 | R75: =COUNTIFS($S$7:$S$181,S75) -> 1 | S75: 76 | T75: 2 | V75: 15
F76: =INDEX('LISTE DES TIREURS'!B$74:B$244,'FEUILLE D''INSCRIPTION'!S76) -> 0 | G76: =INDEX('LISTE DES TIREURS'!C$74:C$244,'FEUILLE D''INSCRIPTION'!S76) -> 0 | H76: =INDEX('FEUILLE D''INSCRIPTION'!U$7:U$15,'FEUILLE D''INSCRIPTION'!T76) -> ELITE | I76: =INDEX('LISTE DES TIREURS'!G$8:G$82,'FEUILLE D''INSCRIPTION'!V76) -> LE VANIL CARRE LMB | J76: XL | N76: =INDEX('LISTE DES TIREURS'!D$74:D$244,'FEUILLE D''INSCRIPTION'!S76) -> 0 | R76: =IF(S76<=1,"",COUNTIFS($S$7:$S$181,S76)) -> 1 | S76: 129 | T76: 2 | V76: 15
F77: =INDEX('LISTE DES TIREURS'!B$74:B$244,'FEUILLE D''INSCRIPTION'!S77) -> 0 | G77: =INDEX('LISTE DES TIREURS'!C$74:C$244,'FEUILLE D''INSCRIPTION'!S77) -> 0 | H77: =INDEX('FEUILLE D''INSCRIPTION'!U$7:U$15,'FEUILLE D''INSCRIPTION'!T77) -> ELITE | I77: =INDEX('LISTE DES TIREURS'!G$8:G$82,'FEUILLE D''INSCRIPTION'!V77) -> LE VANIL CARRE LMB | J77: S | N77: =INDEX('LISTE DES TIREURS'!D$74:D$244,'FEUILLE D''INSCRIPTION'!S77) -> 0 | R77: 1 | S77: 116 | T77: 2 | V77: 15
F79: =INDEX('LISTE DES TIREURS'!B$74:B$244,'FEUILLE D''INSCRIPTION'!S79) -> GAGO DA SILVA CRUZ RUI JORGE | G79: =INDEX('LISTE DES TIREURS'!C$74:C$244,'FEUILLE D''INSCRIPTION'!S79) -> 1973 | H79: =INDEX('FEUILLE D''INSCRIPTION'!U$7:U$15,'FEUILLE D''INSCRIPTION'!T79) -> ELITE | I79: =INDEX('LISTE DES TIREURS'!G$8:G$82,'FEUILLE D''INSCRIPTION'!V79) -> LE KAISEREGG LMB | J79: =INDEX('LISTE DES TIREURS'!F$8:F$82,'FEUILLE D''INSCRIPTION'!V79) -> 0 | K79: 14 | L79: LIEBHERR MACHINES BULLE SA | M79: A | N79: =INDEX('LISTE DES TIREURS'!D$74:D$244,'FEUILLE D''INSCRIPTION'!S79) -> F90 | R79: =COUNTIFS($S$7:$S$181,S79) -> 1 | S79: 42 | T79: 2 | V79: 13
F80: =INDEX('LISTE DES TIREURS'!B$74:B$244,'FEUILLE D''INSCRIPTION'!S80) -> GALLAND ANTOINE | G80: =INDEX('LISTE DES TIREURS'!C$74:C$244,'FEUILLE D''INSCRIPTION'!S80) -> 1986 | H80: =INDEX('FEUILLE D''INSCRIPTION'!U$7:U$15,'FEUILLE D''INSCRIPTION'!T80) -> ELITE | I80: =INDEX('LISTE DES TIREURS'!G$8:G$82,'FEUILLE D''INSCRIPTION'!V80) -> LE KAISEREGG LMB | J80: =INDEX('LISTE DES TIREURS'!F$8:F$82,'FEUILLE D''INSCRIPTION'!V80) -> 0 | K80: 14 | L80: LIEBHERR MACHINES BULLE SA | M80: A | N80: =INDEX('LISTE DES TIREURS'!D$74:D$244,'FEUILLE D''INSCRIPTION'!S80) -> F90 | R80: =COUNTIFS($S$7:$S$181,S80) -> 1 | S80: 43 | T80: 2 | V80: 13
F81: =INDEX('LISTE DES TIREURS'!B$74:B$244,'FEUILLE D''INSCRIPTION'!S81) -> GLORIANT ANTOINE | G81: =INDEX('LISTE DES TIREURS'!C$74:C$244,'FEUILLE D''INSCRIPTION'!S81) -> 1988 | H81: =INDEX('FEUILLE D''INSCRIPTION'!U$7:U$15,'FEUILLE D''INSCRIPTION'!T81) -> ELITE | I81: =INDEX('LISTE DES TIREURS'!G$8:G$82,'FEUILLE D''INSCRIPTION'!V81) -> LE KAISEREGG LMB | J81: L | K81: 14 | L81: LIEBHERR MACHINES BULLE SA | M81: A | N81: =INDEX('LISTE DES TIREURS'!D$74:D$244,'FEUILLE D''INSCRIPTION'!S81) -> F90 | P81: 1 | R81: =COUNTIFS($S$7:$S$181,S81) -> 1 | S81: 48 | T81: 2 | V81: 13
F82: =INDEX('LISTE DES TIREURS'!B$74:B$244,'FEUILLE D''INSCRIPTION'!S82) -> VIELLE VINCENT | G82: =INDEX('LISTE DES TIREURS'!C$74:C$244,'FEUILLE D''INSCRIPTION'!S82) -> 1992 | H82: =INDEX('FEUILLE D''INSCRIPTION'!U$7:U$15,'FEUILLE D''INSCRIPTION'!T82) -> ELITE | I82: =INDEX('LISTE DES TIREURS'!G$8:G$82,'FEUILLE D''INSCRIPTION'!V82) -> LE KAISEREGG LMB | J82: =INDEX('LISTE DES TIREURS'!F$8:F$82,'FEUILLE D''INSCRIPTION'!V82) -> 0 | K82: 14 | L82: LIEBHERR MACHINES BULLE SA | M82: A | N82: =INDEX('LISTE DES TIREURS'!D$74:D$244,'FEUILLE D''INSCRIPTION'!S82) -> F90 | R82: =IF(S82<=1,"",COUNTIFS($S$7:$S$181,S82)) -> 1 | S82: 105 | T82: 2 | V82: 13
F83: =INDEX('LISTE DES TIREURS'!B$74:B$244,'FEUILLE D''INSCRIPTION'!S83) -> RAMADANI REFIK | G83: =INDEX('LISTE DES TIREURS'!C$74:C$244,'FEUILLE D''INSCRIPTION'!S83) -> 0 | H83: =INDEX('FEUILLE D''INSCRIPTION'!U$7:U$15,'FEUILLE D''INSCRIPTION'!T83) -> ELITE | I83: =INDEX('LISTE DES TIREURS'!G$8:G$82,'FEUILLE D''INSCRIPTION'!V83) -> LE KAISEREGG LMB | J83: M | K83: 14 | L83: LIEBHERR MACHINES BULLE SA | M83: A | N83: =INDEX('LISTE DES TIREURS'!D$74:D$244,'FEUILLE D''INSCRIPTION'!S83) -> F90 | R83: 1 | S83: 84 | T83: 2 | V83: 13
F85: =INDEX('LISTE DES TIREURS'!B$74:B$244,'FEUILLE D''INSCRIPTION'!S85) -> 0 | G85: 1988 | H85: =INDEX('FEUILLE D''INSCRIPTION'!U$7:U$15,'FEUILLE D''INSCRIPTION'!T85) -> ELITE | I85: =INDEX('LISTE DES TIREURS'!G$8:G$82,'FEUILLE D''INSCRIPTION'!V85) -> LA DENT DE LYS LMB | J85: S | N85: =INDEX('LISTE DES TIREURS'!D$74:D$244,'FEUILLE D''INSCRIPTION'!S85) -> 0 | R85: =COUNTIFS($S$7:$S$181,S85) -> 1 | S85: 132 | T85: 2 | V85: 7
F86: =INDEX('LISTE DES TIREURS'!B$74:B$244,'FEUILLE D''INSCRIPTION'!S86) -> NUSSBAUMER ANTOINE | G86: =INDEX('LISTE DES TIREURS'!C$74:C$244,'FEUILLE D''INSCRIPTION'!S86) -> 1983 | H86: =INDEX('FEUILLE D''INSCRIPTION'!U$7:U$15,'FEUILLE D''INSCRIPTION'!T86) -> ELITE | I86: =INDEX('LISTE DES TIREURS'!G$8:G$82,'FEUILLE D''INSCRIPTION'!V86) -> LA DENT DE LYS LMB | J86: =INDEX('LISTE DES TIREURS'!F$8:F$82,'FEUILLE D''INSCRIPTION'!V86) -> 0 | K86: 14 | L86: LIEBHERR MACHINES BULLE SA | M86: A | N86: =INDEX('LISTE DES TIREURS'!D$74:D$244,'FEUILLE D''INSCRIPTION'!S86) -> F90 | R86: =COUNTIFS($S$7:$S$181,S86) -> 1 | S86: 77 | T86: 2 | V86: 7
F87: =INDEX('LISTE DES TIREURS'!B$74:B$244,'FEUILLE D''INSCRIPTION'!S87) -> RABOUD CLAUDINE | G87: =INDEX('LISTE DES TIREURS'!C$74:C$244,'FEUILLE D''INSCRIPTION'!S87) -> 1981 | H87: =INDEX('FEUILLE D''INSCRIPTION'!U$7:U$15,'FEUILLE D''INSCRIPTION'!T87) -> ELITE | I87: =INDEX('LISTE DES TIREURS'!G$8:G$82,'FEUILLE D''INSCRIPTION'!V87) -> LA DENT DE LYS LMB | J87: XXL | K87: 14 | L87: LIEBHERR MACHINES BULLE SA | M87: A | N87: =INDEX('LISTE DES TIREURS'!D$74:D$244,'FEUILLE D''INSCRIPTION'!S87) -> F90 | R87: =COUNTIFS($S$7:$S$181,S87) -> 1 | S87: 83 | T87: 2 | V87: 7
F88: =INDEX('LISTE DES TIREURS'!B$74:B$244,'FEUILLE D''INSCRIPTION'!S88) -> ARIAS JOSE | G88: =INDEX('LISTE DES TIREURS'!C$74:C$244,'FEUILLE D''INSCRIPTION'!S88) -> 1971 | H88: =INDEX('FEUILLE D''INSCRIPTION'!U$7:U$15,'FEUILLE D''INSCRIPTION'!T88) -> DAME | I88: =INDEX('LISTE DES TIREURS'!G$8:G$82,'FEUILLE D''INSCRIPTION'!V88) -> LA DENT DE LYS LMB | J88: XS | K88: 14 | L88: LIEBHERR MACHINES BULLE SA | M88: A | N88: =INDEX('LISTE DES TIREURS'!D$74:D$244,'FEUILLE D''INSCRIPTION'!S88) -> F90 | R88: =IF(S88<=1,"",COUNTIFS($S$7:$S$181,S88)) -> 1 | S88: 6 | T88: 5 | V88: 7
F89: =INDEX('LISTE DES TIREURS'!B$74:B$244,'FEUILLE D''INSCRIPTION'!S89) -> BOICHAT MICHEL | G89: =INDEX('LISTE DES TIREURS'!C$74:C$244,'FEUILLE D''INSCRIPTION'!S89) -> 1952 | H89: =INDEX('FEUILLE D''INSCRIPTION'!U$7:U$15,'FEUILLE D''INSCRIPTION'!T89) -> ELITE | I89: =INDEX('LISTE DES TIREURS'!G$8:G$82,'FEUILLE D''INSCRIPTION'!V89) -> LA DENT DE LYS LMB | J89: =INDEX('LISTE DES TIREURS'!F$8:F$82,'FEUILLE D''INSCRIPTION'!V89) -> 0 | K89: 14 | L89: LIEBHERR MACHINES BULLE SA | M89: A | N89: =INDEX('LISTE DES TIREURS'!D$74:D$244,'FEUILLE D''INSCRIPTION'!S89) -> F90 | R89: 1 | S89: 16 | T89: 2 | V89: 7
F91: =INDEX('LISTE DES TIREURS'!B$74:B$244,'FEUILLE D''INSCRIPTION'!S91) -> TOPOROWICZ CIORCERO ELISSON | G91: =INDEX('LISTE DES TIREURS'!C$74:C$244,'FEUILLE D''INSCRIPTION'!S91) -> 1989 | H91: =INDEX('FEUILLE D''INSCRIPTION'!U$7:U$15,'FEUILLE D''INSCRIPTION'!T91) -> ELITE | I91: =INDEX('LISTE DES TIREURS'!G$8:G$82,'FEUILLE D''INSCRIPTION'!V91) -> LA HOCHMATT LMB | J91: XXL | K91: =IF(F91>0,$I$3,"") -> 14 | L91: =IF(F91>0,$F$2,"") -> LIEBHERR MACHINES BULLE SA | M91: =IF(F91>0,$G$3,"") -> A | N91: =INDEX('LISTE DES TIREURS'!D$74:D$244,'FEUILLE D''INSCRIPTION'!S91) -> F90 | R91: =COUNTIFS($S$7:$S$181,S91) -> 1 | S91: 98 | T91: 2 | V91: 10
F92: =INDEX('LISTE DES TIREURS'!B$74:B$244,'FEUILLE D''INSCRIPTION'!S92) -> YASYN SAID | G92: =INDEX('LISTE DES TIREURS'!C$74:C$244,'FEUILLE D''INSCRIPTION'!S92) -> 1989 | H92: =INDEX('FEUILLE D''INSCRIPTION'!U$7:U$15,'FEUILLE D''INSCRIPTION'!T92) -> ELITE | I92: =INDEX('LISTE DES TIREURS'!G$8:G$82,'FEUILLE D''INSCRIPTION'!V92) -> LA HOCHMATT LMB | J92: S | K92: 14 | L92: LIEBHERR MACHINES BULLE SA | M92: A | N92: =INDEX('LISTE DES TIREURS'!D$74:D$244,'FEUILLE D''INSCRIPTION'!S92) -> F90 | R92: =COUNTIFS($S$7:$S$181,S92) -> 1 | S92: 112 | T92: 2 | V92: 10
F93: =INDEX('LISTE DES TIREURS'!B$74:B$244,'FEUILLE D''INSCRIPTION'!S93) -> ZBINDEN CAROLE | G93: =INDEX('LISTE DES TIREURS'!C$74:C$244,'FEUILLE D''INSCRIPTION'!S93) -> 1979 | H93: =INDEX('FEUILLE D''INSCRIPTION'!U$7:U$15,'FEUILLE D''INSCRIPTION'!T93) -> ELITE | I93: =INDEX('LISTE DES TIREURS'!G$8:G$82,'FEUILLE D''INSCRIPTION'!V93) -> LA HOCHMATT LMB | J93: S | K93: 14 | L93: LIEBHERR MACHINES BULLE SA | M93: A | N93: =INDEX('LISTE DES TIREURS'!D$74:D$244,'FEUILLE D''INSCRIPTION'!S93) -> F90 | R93: =COUNTIFS($S$7:$S$181,S93) -> 1 | S93: 113 | T93: 2 | V93: 10
F94: =INDEX('LISTE DES TIREURS'!B$74:B$244,'FEUILLE D''INSCRIPTION'!S94) -> ZIBOUCHE FARID | G94: =INDEX('LISTE DES TIREURS'!C$74:C$244,'FEUILLE D''INSCRIPTION'!S94) -> 1988 | H94: =INDEX('FEUILLE D''INSCRIPTION'!U$7:U$15,'FEUILLE D''INSCRIPTION'!T94) -> ELITE | I94: =INDEX('LISTE DES TIREURS'!G$8:G$82,'FEUILLE D''INSCRIPTION'!V94) -> LA HOCHMATT LMB | J94: L | K94: 14 | L94: LIEBHERR MACHINES BULLE SA | M94: A | N94: =INDEX('LISTE DES TIREURS'!D$74:D$244,'FEUILLE D''INSCRIPTION'!S94) -> F90 | R94: =IF(S94<=1,"",COUNTIFS($S$7:$S$181,S94)) -> 1 | S94: 114 | T94: 2 | V94: 10
F95: =INDEX('LISTE DES TIREURS'!B$74:B$244,'FEUILLE D''INSCRIPTION'!S95) -> AKCOELTEKIN NAMIK | G95: =INDEX('LISTE DES TIREURS'!C$74:C$244,'FEUILLE D''INSCRIPTION'!S95) -> 1979 | H95: =INDEX('FEUILLE D''INSCRIPTION'!U$7:U$15,'FEUILLE D''INSCRIPTION'!T95) -> ELITE | I95: =INDEX('LISTE DES TIREURS'!G$8:G$82,'FEUILLE D''INSCRIPTION'!V95) -> LA HOCHMATT LMB | J95: =INDEX('LISTE DES TIREURS'!F$8:F$82,'FEUILLE D''INSCRIPTION'!V95) -> 0 | K95: 14 | L95: LIEBHERR MACHINES BULLE SA | M95: A | N95: =INDEX('LISTE DES TIREURS'!D$74:D$244,'FEUILLE D''INSCRIPTION'!S95) -> F90 | R95: 1 | S95: 2 | T95: 2 | V95: 10
F97: =INDEX('LISTE DES TIREURS'!B$74:B$244,'FEUILLE D''INSCRIPTION'!S97) -> DESPONT JOEL | G97: =INDEX('LISTE DES TIREURS'!C$74:C$244,'FEUILLE D''INSCRIPTION'!S97) -> 1975 | H97: =INDEX('FEUILLE D''INSCRIPTION'!U$7:U$15,'FEUILLE D''INSCRIPTION'!T97) -> ELITE | I97: =INDEX('LISTE DES TIREURS'!G$8:G$82,'FEUILLE D''INSCRIPTION'!V97) -> 0 | J97: L | K97: =IF(F97>0,$I$3,"") -> 14 | L97: =IF(F97>0,$F$2,"") -> LIEBHERR MACHINES BULLE SA | M97: =IF(F97>0,$G$3,"") -> A | N97: =INDEX('LISTE DES TIREURS'!D$74:D$244,'FEUILLE D''INSCRIPTION'!S97) -> F90 | R97: =COUNTIFS($S$7:$S$181,S97) -> 1 | S97: 29 | T97: 2 | V97: 68
F98: =INDEX('LISTE DES TIREURS'!B$74:B$244,'FEUILLE D''INSCRIPTION'!S98) -> TERRIER ANTOINE | G98: =INDEX('LISTE DES TIREURS'!C$74:C$244,'FEUILLE D''INSCRIPTION'!S98) -> 1995 | H98: =INDEX('FEUILLE D''INSCRIPTION'!U$7:U$15,'FEUILLE D''INSCRIPTION'!T98) -> ELITE | I98: =INDEX('LISTE DES TIREURS'!G$8:G$82,'FEUILLE D''INSCRIPTION'!V98) -> 0 | J98: M | K98: 14 | L98: LIEBHERR MACHINES BULLE SA | M98: A | N98: =INDEX('LISTE DES TIREURS'!D$74:D$244,'FEUILLE D''INSCRIPTION'!S98) -> F90 | R98: =COUNTIFS($S$7:$S$181,S98) -> 1 | S98: 96 | T98: 2 | V98: 68
F99: =INDEX('LISTE DES TIREURS'!B$74:B$244,'FEUILLE D''INSCRIPTION'!S99) -> ASLAN YUNUS EMRE | G99: =INDEX('LISTE DES TIREURS'!C$74:C$244,'FEUILLE D''INSCRIPTION'!S99) -> 1996 | H99: =INDEX('FEUILLE D''INSCRIPTION'!U$7:U$15,'FEUILLE D''INSCRIPTION'!T99) -> ELITE | I99: =INDEX('LISTE DES TIREURS'!G$8:G$82,'FEUILLE D''INSCRIPTION'!V99) -> 0 | K99: 14 | L99: LIEBHERR MACHINES BULLE SA | M99: A | N99: =INDEX('LISTE DES TIREURS'!D$74:D$244,'FEUILLE D''INSCRIPTION'!S99) -> F90 | R99: =COUNTIFS($S$7:$S$181,S99) -> 1 | S99: 7 | T99: 2 | V99: 68
F100: =INDEX('LISTE DES TIREURS'!B$74:B$244,'FEUILLE D''INSCRIPTION'!S100) -> 0 | G100: =INDEX('LISTE DES TIREURS'!C$74:C$244,'FEUILLE D''INSCRIPTION'!S100) -> 0 | H100: =INDEX('FEUILLE D''INSCRIPTION'!U$7:U$15,'FEUILLE D''INSCRIPTION'!T100) -> ELITE | I100: =INDEX('LISTE DES TIREURS'!G$8:G$82,'FEUILLE D''INSCRIPTION'!V100) -> 0 | J100: S | N100: =INDEX('LISTE DES TIREURS'!D$74:D$244,'FEUILLE D''INSCRIPTION'!S100) -> 0 | R100: =IF(S100<=1,"",COUNTIFS($S$7:$S$181,S100)) -> 1 | S100: 123 | T100: 2 | V100: 68
F101: =INDEX('LISTE DES TIREURS'!B$74:B$244,'FEUILLE D''INSCRIPTION'!S101) -> 0 | G101: =INDEX('LISTE DES TIREURS'!C$74:C$244,'FEUILLE D''INSCRIPTION'!S101) -> 0 | H101: =INDEX('FEUILLE D''INSCRIPTION'!U$7:U$15,'FEUILLE D''INSCRIPTION'!T101) -> ELITE | I101: =INDEX('LISTE DES TIREURS'!G$8:G$82,'FEUILLE D''INSCRIPTION'!V101) -> 0 | J101: XXL | N101: =INDEX('LISTE DES TIREURS'!D$74:D$244,'FEUILLE D''INSCRIPTION'!S101) -> 0 | R101: 1 | S101: 117 | T101: 2 | V101: 68
F103: =INDEX('LISTE DES TIREURS'!B$74:B$244,'FEUILLE D''INSCRIPTION'!S103) -> 0 | G103: =INDEX('LISTE DES TIREURS'!C$74:C$244,'FEUILLE D''INSCRIPTION'!S103) -> 0 | H103: =INDEX('FEUILLE D''INSCRIPTION'!U$7:U$15,'FEUILLE D''INSCRIPTION'!T103) -> ELITE | I103: =INDEX('LISTE DES TIREURS'!G$8:G$82,'FEUILLE D''INSCRIPTION'!V103) -> 0 | J103: XXL | K103: =IF(F103>0,$I$3,"") ->  | L103: =IF(F103>0,$F$2,"") ->  | M103: =IF(F103>0,$G$3,"") ->  | N103: =INDEX('LISTE DES TIREURS'!D$74:D$244,'FEUILLE D''INSCRIPTION'!S103) -> 0 | R103: =COUNTIFS($S$7:$S$181,S103) -> 1 | S103: 118 | T103: 2 | V103: 69
F104: =INDEX('LISTE DES TIREURS'!B$74:B$244,'FEUILLE D''INSCRIPTION'!S104) -> 0 | G104: =INDEX('LISTE DES TIREURS'!C$74:C$244,'FEUILLE D''INSCRIPTION'!S104) -> 0 | H104: =INDEX('FEUILLE D''INSCRIPTION'!U$7:U$15,'FEUILLE D''INSCRIPTION'!T104) -> ELITE | I104: =INDEX('LISTE DES TIREURS'!G$8:G$82,'FEUILLE D''INSCRIPTION'!V104) -> 0 | J104: XXL | N104: =INDEX('LISTE DES TIREURS'!D$74:D$244,'FEUILLE D''INSCRIPTION'!S104) -> 0 | R104: =COUNTIFS($S$7:$S$181,S104) -> 1 | S104: 119 | T104: 2 | V104: 69
F105: =INDEX('LISTE DES TIREURS'!B$74:B$244,'FEUILLE D''INSCRIPTION'!S105) -> 0 | G105: =INDEX('LISTE DES TIREURS'!C$74:C$244,'FEUILLE D''INSCRIPTION'!S105) -> 0 | H105: =INDEX('FEUILLE D''INSCRIPTION'!U$7:U$15,'FEUILLE D''INSCRIPTION'!T105) -> DAME | I105: =INDEX('LISTE DES TIREURS'!G$8:G$82,'FEUILLE D''INSCRIPTION'!V105) -> 0 | N105: =INDEX('LISTE DES TIREURS'!D$74:D$244,'FEUILLE D''INSCRIPTION'!S105) -> 0 | R105: =COUNTIFS($S$7:$S$181,S105) -> 1 | S105: 128 | T105: 5 | V105: 69
F106: =INDEX('LISTE DES TIREURS'!B$74:B$244,'FEUILLE D''INSCRIPTION'!S106) -> 0 | G106: =INDEX('LISTE DES TIREURS'!C$74:C$244,'FEUILLE D''INSCRIPTION'!S106) -> 0 | H106: =INDEX('FEUILLE D''INSCRIPTION'!U$7:U$15,'FEUILLE D''INSCRIPTION'!T106) -> ELITE | I106: =INDEX('LISTE DES TIREURS'!G$8:G$82,'FEUILLE D''INSCRIPTION'!V106) -> 0 | J106: M | N106: =INDEX('LISTE DES TIREURS'!D$74:D$244,'FEUILLE D''INSCRIPTION'!S106) -> 0 | R106: =IF(S106<=1,"",COUNTIFS($S$7:$S$181,S106)) -> 1 | S106: 121 | T106: 2 | V106: 69
F107: =INDEX('LISTE DES TIREURS'!B$74:B$244,'FEUILLE D''INSCRIPTION'!S107) -> 0 | G107: =INDEX('LISTE DES TIREURS'!C$74:C$244,'FEUILLE D''INSCRIPTION'!S107) -> 0 | H107: =INDEX('FEUILLE D''INSCRIPTION'!U$7:U$15,'FEUILLE D''INSCRIPTION'!T107) -> ELITE | I107: =INDEX('LISTE DES TIREURS'!G$8:G$82,'FEUILLE D''INSCRIPTION'!V107) -> 0 | J107: S | N107: =INDEX('LISTE DES TIREURS'!D$74:D$244,'FEUILLE D''INSCRIPTION'!S107) -> 0 | R107: 1 | S107: 122 | T107: 2 | V107: 69
F109: =INDEX('LISTE DES TIREURS'!B$74:B$244,'FEUILLE D''INSCRIPTION'!S109) -> 0 | G109: =INDEX('LISTE DES TIREURS'!C$74:C$244,'FEUILLE D''INSCRIPTION'!S109) -> 0 | H109: =INDEX('FEUILLE D''INSCRIPTION'!U$7:U$15,'FEUILLE D''INSCRIPTION'!T109) -> ELITE | I109: =INDEX('LISTE DES TIREURS'!G$8:G$82,'FEUILLE D''INSCRIPTION'!V109) -> INDIVIDUEL | J109: S | K109: =IF(F109>0,$I$3,"") ->  | L109: =IF(F109>0,$F$2,"") ->  | M109: =IF(F109>0,$G$3,"") ->  | N109: =INDEX('LISTE DES TIREURS'!D$74:D$244,'FEUILLE D''INSCRIPTION'!S109) -> 0 | R109: =COUNTIFS($S$7:$S$181,S109) -> 1 | S109: 124 | T109: 2 | V109: 2
F110: =INDEX('LISTE DES TIREURS'!B$74:B$244,'FEUILLE D''INSCRIPTION'!S110) -> 0 | G110: =INDEX('LISTE DES TIREURS'!C$74:C$244,'FEUILLE D''INSCRIPTION'!S110) -> 0 | H110: =INDEX('FEUILLE D''INSCRIPTION'!U$7:U$15,'FEUILLE D''INSCRIPTION'!T110) -> ELITE | I110: =INDEX('LISTE DES TIREURS'!G$8:G$82,'FEUILLE D''INSCRIPTION'!V110) -> INDIVIDUEL | J110: L | N110: =INDEX('LISTE DES TIREURS'!D$74:D$244,'FEUILLE D''INSCRIPTION'!S110) -> 0 | R110: =COUNTIFS($S$7:$S$181,S110) -> 1 | S110: 125 | T110: 2 | V110: 2
F111: =INDEX('LISTE DES TIREURS'!B$74:B$244,'FEUILLE D''INSCRIPTION'!S111) -> 0 | G111: =INDEX('LISTE DES TIREURS'!C$74:C$244,'FEUILLE D''INSCRIPTION'!S111) -> 0 | H111: =INDEX('FEUILLE D''INSCRIPTION'!U$7:U$15,'FEUILLE D''INSCRIPTION'!T111) -> ELITE | I111: =INDEX('LISTE DES TIREURS'!G$8:G$82,'FEUILLE D''INSCRIPTION'!V111) -> INDIVIDUEL | J111: S | N111: =INDEX('LISTE DES TIREURS'!D$74:D$244,'FEUILLE D''INSCRIPTION'!S111) -> 0 | R111: =COUNTIFS($S$7:$S$181,S111) -> 1 | S111: 126 | T111: 2 | V111: 2
F112: =INDEX('LISTE DES TIREURS'!B$74:B$244,'FEUILLE D''INSCRIPTION'!S112) -> 0 | G112: =INDEX('LISTE DES TIREURS'!C$74:C$244,'FEUILLE D''INSCRIPTION'!S112) -> 0 | H112: =INDEX('FEUILLE D''INSCRIPTION'!U$7:U$15,'FEUILLE D''INSCRIPTION'!T112) -> ELITE | I112: =INDEX('LISTE DES TIREURS'!G$8:G$82,'FEUILLE D''INSCRIPTION'!V112) -> INDIVIDUEL | J112: M | N112: F90 | R112: =IF(S112<=1,"",COUNTIFS($S$7:$S$181,S112)) -> 1 | S112: 133 | T112: 2 | V112: 2
F113: =INDEX('LISTE DES TIREURS'!B$74:B$244,'FEUILLE D''INSCRIPTION'!S113) -> FONGANG TEMGOUA ALAIN | G113: =INDEX('LISTE DES TIREURS'!C$74:C$244,'FEUILLE D''INSCRIPTION'!S113) -> 1974 | H113: =INDEX('FEUILLE D''INSCRIPTION'!U$7:U$15,'FEUILLE D''INSCRIPTION'!T113) -> ELITE | I113: =INDEX('LISTE DES TIREURS'!G$8:G$82,'FEUILLE D''INSCRIPTION'!V113) -> INDIVIDUEL | J113: M | K113: 14 | L113: LIEBHERR MACHINES BULLE SA | M113: A | N113: =INDEX('LISTE DES TIREURS'!D$74:D$244,'FEUILLE D''INSCRIPTION'!S113) -> F90 | R113: 1 | S113: 39 | T113: 2 | V113: 2
F115: =INDEX('LISTE DES TIREURS'!B$74:B$244,'FEUILLE D''INSCRIPTION'!S115) -> 0 | G115: =INDEX('LISTE DES TIREURS'!C$74:C$244,'FEUILLE D''INSCRIPTION'!S115) -> 0 | H115: =INDEX('FEUILLE D''INSCRIPTION'!U$7:U$15,'FEUILLE D''INSCRIPTION'!T115) -> 0 | I115: =INDEX('LISTE DES TIREURS'!G$8:G$82,'FEUILLE D''INSCRIPTION'!V115) -> 0 | K115: =IF(F115>0,$I$3,"") ->  | L115: =IF(F115>0,$F$2,"") ->  | M115: =IF(F115>0,$G$3,"") ->  | R115: =COUNTIFS($S$7:$S$181,S115) -> 1 | S115: 167 | T115: 1 | V115: 1
F116: =INDEX('LISTE DES TIREURS'!B$74:B$244,'FEUILLE D''INSCRIPTION'!S116) -> 0 | G116: =INDEX('LISTE DES TIREURS'!C$74:C$244,'FEUILLE D''INSCRIPTION'!S116) -> 0 | H116: =INDEX('FEUILLE D''INSCRIPTION'!U$7:U$15,'FEUILLE D''INSCRIPTION'!T116) -> 0 | I116: =INDEX('LISTE DES TIREURS'!G$8:G$82,'FEUILLE D''INSCRIPTION'!V116) -> 0 | J116: =INDEX('LISTE DES TIREURS'!F$8:F$82,'FEUILLE D''INSCRIPTION'!V116) -> 0 | R116: =COUNTIFS($S$7:$S$181,S116) -> 1 | S116: 163 | T116: 1 | V116: 1
F117: =INDEX('LISTE DES TIREURS'!B$74:B$244,'FEUILLE D''INSCRIPTION'!S117) -> 0 | G117: =INDEX('LISTE DES TIREURS'!C$74:C$244,'FEUILLE D''INSCRIPTION'!S117) -> 0 | H117: =INDEX('FEUILLE D''INSCRIPTION'!U$7:U$15,'FEUILLE D''INSCRIPTION'!T117) -> 0 | I117: =INDEX('LISTE DES TIREURS'!G$8:G$82,'FEUILLE D''INSCRIPTION'!V117) -> 0 | J117: =INDEX('LISTE DES TIREURS'!F$8:F$82,'FEUILLE D''INSCRIPTION'!V117) -> 0 | R117: =COUNTIFS($S$7:$S$181,S117) -> 1 | S117: 166 | T117: 1 | V117: 1
F118: =INDEX('LISTE DES TIREURS'!B$74:B$244,'FEUILLE D''INSCRIPTION'!S118) -> 0 | G118: =INDEX('LISTE DES TIREURS'!C$74:C$244,'FEUILLE D''INSCRIPTION'!S118) -> 0 | H118: =INDEX('FEUILLE D''INSCRIPTION'!U$7:U$15,'FEUILLE D''INSCRIPTION'!T118) -> 0 | I118: =INDEX('LISTE DES TIREURS'!G$8:G$82,'FEUILLE D''INSCRIPTION'!V118) -> 0 | J118: =INDEX('LISTE DES TIREURS'!F$8:F$82,'FEUILLE D''INSCRIPTION'!V118) -> 0 | R118: =IF(S118<=1,"",COUNTIFS($S$7:$S$181,S118)) -> 1 | S118: 169 | T118: 1 | V118: 1
F119: =INDEX('LISTE DES TIREURS'!B$74:B$244,'FEUILLE D''INSCRIPTION'!S119) -> 0 | G119: =INDEX('LISTE DES TIREURS'!C$74:C$244,'FEUILLE D''INSCRIPTION'!S119) -> 0 | H119: =INDEX('FEUILLE D''INSCRIPTION'!U$7:U$15,'FEUILLE D''INSCRIPTION'!T119) -> 0 | I119: =INDEX('LISTE DES TIREURS'!G$8:G$82,'FEUILLE D''INSCRIPTION'!V119) -> 0 | J119: =INDEX('LISTE DES TIREURS'!F$8:F$82,'FEUILLE D''INSCRIPTION'!V119) -> 0 | N119: =INDEX('LISTE DES TIREURS'!D$74:D$244,'FEUILLE D''INSCRIPTION'!S119) -> 0 | S119: 1 | T119: 1 | V119: 1
F121: =INDEX('LISTE DES TIREURS'!B$74:B$244,'FEUILLE D''INSCRIPTION'!S121) -> 0 | G121: =INDEX('LISTE DES TIREURS'!C$74:C$244,'FEUILLE D''INSCRIPTION'!S121) -> 0 | H121: =INDEX('FEUILLE D''INSCRIPTION'!U$7:U$15,'FEUILLE D''INSCRIPTION'!T121) -> 0 | I121: =INDEX('LISTE DES TIREURS'!G$8:G$82,'FEUILLE D''INSCRIPTION'!V121) -> 0 | J121: =INDEX('LISTE DES TIREURS'!F$8:F$82,'FEUILLE D''INSCRIPTION'!V121) -> 0 | K121: =IF(F121>0,$I$3,"") ->  | L121: =IF(F121>0,$F$2,"") ->  | M121: =IF(F121>0,$G$3,"") ->  | N121: =INDEX('LISTE DES TIREURS'!D$74:D$244,'FEUILLE D''INSCRIPTION'!S121) -> 0 | R121: =COUNTIFS($S$7:$S$181,S121) -> 36 | S121: 1 | T121: 1 | V121: 1
F122: =INDEX('LISTE DES TIREURS'!B$74:B$244,'FEUILLE D''INSCRIPTION'!S122) -> 0 | G122: =INDEX('LISTE DES TIREURS'!C$74:C$244,'FEUILLE D''INSCRIPTION'!S122) -> 0 | H122: =INDEX('FEUILLE D''INSCRIPTION'!U$7:U$15,'FEUILLE D''INSCRIPTION'!T122) -> 0 | I122: =INDEX('LISTE DES TIREURS'!G$8:G$82,'FEUILLE D''INSCRIPTION'!V122) -> 0 | J122: =INDEX('LISTE DES TIREURS'!F$8:F$82,'FEUILLE D''INSCRIPTION'!V122) -> 0 | N122: =INDEX('LISTE DES TIREURS'!D$74:D$244,'FEUILLE D''INSCRIPTION'!S122) -> 0 | R122: =COUNTIFS($S$7:$S$181,S122) -> 36 | S122: 1 | T122: 1 | V122: 1
F123: =INDEX('LISTE DES TIREURS'!B$74:B$244,'FEUILLE D''INSCRIPTION'!S123) -> 0 | G123: =INDEX('LISTE DES TIREURS'!C$74:C$244,'FEUILLE D''INSCRIPTION'!S123) -> 0 | H123: =INDEX('FEUILLE D''INSCRIPTION'!U$7:U$15,'FEUILLE D''INSCRIPTION'!T123) -> 0 | I123: =INDEX('LISTE DES TIREURS'!G$8:G$82,'FEUILLE D''INSCRIPTION'!V123) -> 0 | J123: =INDEX('LISTE DES TIREURS'!F$8:F$82,'FEUILLE D''INSCRIPTION'!V123) -> 0 | N123: =INDEX('LISTE DES TIREURS'!D$74:D$244,'FEUILLE D''INSCRIPTION'!S123) -> 0 | R123: =COUNTIFS($S$7:$S$181,S123) -> 36 | S123: 1 | T123: 1 | V123: 1
F124: =INDEX('LISTE DES TIREURS'!B$74:B$244,'FEUILLE D''INSCRIPTION'!S124) -> 0 | G124: =INDEX('LISTE DES TIREURS'!C$74:C$244,'FEUILLE D''INSCRIPTION'!S124) -> 0 | H124: =INDEX('FEUILLE D''INSCRIPTION'!U$7:U$15,'FEUILLE D''INSCRIPTION'!T124) -> 0 | I124: =INDEX('LISTE DES TIREURS'!G$8:G$82,'FEUILLE D''INSCRIPTION'!V124) -> 0 | J124: =INDEX('LISTE DES TIREURS'!F$8:F$82,'FEUILLE D''INSCRIPTION'!V124) -> 0 | N124: =INDEX('LISTE DES TIREURS'!D$74:D$244,'FEUILLE D''INSCRIPTION'!S124) -> 0 | R124: =IF(S124<=1,"",COUNTIFS($S$7:$S$181,S124)) ->  | S124: 1 | T124: 1 | V124: 1
F125: =INDEX('LISTE DES TIREURS'!B$74:B$244,'FEUILLE D''INSCRIPTION'!S125) -> 0 | G125: =INDEX('LISTE DES TIREURS'!C$74:C$244,'FEUILLE D''INSCRIPTION'!S125) -> 0 | H125: =INDEX('FEUILLE D''INSCRIPTION'!U$7:U$15,'FEUILLE D''INSCRIPTION'!T125) -> 0 | I125: =INDEX('LISTE DES TIREURS'!G$8:G$82,'FEUILLE D''INSCRIPTION'!V125) -> 0 | J125: =INDEX('LISTE DES TIREURS'!F$8:F$82,'FEUILLE D''INSCRIPTION'!V125) -> 0 | N125: =INDEX('LISTE DES TIREURS'!D$74:D$244,'FEUILLE D''INSCRIPTION'!S125) -> 0 | S125: 1 | T125: 1 | V125: 1
V126: 2
F127: =INDEX('LISTE DES TIREURS'!B$74:B$244,'FEUILLE D''INSCRIPTION'!S127) -> 0 | G127: =INDEX('LISTE DES TIREURS'!C$74:C$244,'FEUILLE D''INSCRIPTION'!S127) -> 0 | H127: =INDEX('FEUILLE D''INSCRIPTION'!U$7:U$15,'FEUILLE D''INSCRIPTION'!T127) -> 0 | I127: =INDEX('LISTE DES TIREURS'!G$8:G$82,'FEUILLE D''INSCRIPTION'!V127) -> 0 | J127: =INDEX('LISTE DES TIREURS'!F$8:F$82,'FEUILLE D''INSCRIPTION'!V127) -> 0 | K127: =IF(F127>0,$I$3,"") ->  | L127: =IF(F127>0,$F$2,"") ->  | M127: =IF(F127>0,$G$3,"") ->  | N127: =INDEX('LISTE DES TIREURS'!D$74:D$244,'FEUILLE D''INSCRIPTION'!S127) -> 0 | R127: =COUNTIFS($S$7:$S$181,S127) -> 36 | S127: 1 | T127: 1 | V127: 1
F128: =INDEX('LISTE DES TIREURS'!B$74:B$244,'FEUILLE D''INSCRIPTION'!S128) -> 0 | G128: =INDEX('LISTE DES TIREURS'!C$74:C$244,'FEUILLE D''INSCRIPTION'!S128) -> 0 | H128: =INDEX('FEUILLE D''INSCRIPTION'!U$7:U$15,'FEUILLE D''INSCRIPTION'!T128) -> 0 | I128: =INDEX('LISTE DES TIREURS'!G$8:G$82,'FEUILLE D''INSCRIPTION'!V128) -> 0 | J128: =INDEX('LISTE DES TIREURS'!F$8:F$82,'FEUILLE D''INSCRIPTION'!V128) -> 0 | N128: =INDEX('LISTE DES TIREURS'!D$74:D$244,'FEUILLE D''INSCRIPTION'!S128) -> 0 | R128: =COUNTIFS($S$7:$S$181,S128) -> 36 | S128: 1 | T128: 1 | V128: 1
F129: =INDEX('LISTE DES TIREURS'!B$74:B$244,'FEUILLE D''INSCRIPTION'!S129) -> 0 | G129: =INDEX('LISTE DES TIREURS'!C$74:C$244,'FEUILLE D''INSCRIPTION'!S129) -> 0 | H129: =INDEX('FEUILLE D''INSCRIPTION'!U$7:U$15,'FEUILLE D''INSCRIPTION'!T129) -> 0 | I129: =INDEX('LISTE DES TIREURS'!G$8:G$82,'FEUILLE D''INSCRIPTION'!V129) -> 0 | J129: =INDEX('LISTE DES TIREURS'!F$8:F$82,'FEUILLE D''INSCRIPTION'!V129) -> 0 | N129: =INDEX('LISTE DES TIREURS'!D$74:D$244,'FEUILLE D''INSCRIPTION'!S129) -> 0 | R129: =COUNTIFS($S$7:$S$181,S129) -> 36 | S129: 1 | T129: 1 | V129: 1
F130: =INDEX('LISTE DES TIREURS'!B$74:B$244,'FEUILLE D''INSCRIPTION'!S130) -> 0 | G130: =INDEX('LISTE DES TIREURS'!C$74:C$244,'FEUILLE D''INSCRIPTION'!S130) -> 0 | H130: =INDEX('FEUILLE D''INSCRIPTION'!U$7:U$15,'FEUILLE D''INSCRIPTION'!T130) -> 0 | I130: =INDEX('LISTE DES TIREURS'!G$8:G$82,'FEUILLE D''INSCRIPTION'!V130) -> 0 | J130: =INDEX('LISTE DES TIREURS'!F$8:F$82,'FEUILLE D''INSCRIPTION'!V130) -> 0 | N130: =INDEX('LISTE DES TIREURS'!D$74:D$244,'FEUILLE D''INSCRIPTION'!S130) -> 0 | R130: =IF(S130<=1,"",COUNTIFS($S$7:$S$181,S130)) ->  | S130: 1 | T130: 1 | V130: 1
F131: =INDEX('LISTE DES TIREURS'!B$74:B$244,'FEUILLE D''INSCRIPTION'!S131) -> 0 | G131: =INDEX('LISTE DES TIREURS'!C$74:C$244,'FEUILLE D''INSCRIPTION'!S131) -> 0 | H131: =INDEX('FEUILLE D''INSCRIPTION'!U$7:U$15,'FEUILLE D''INSCRIPTION'!T131) -> 0 | I131: =INDEX('LISTE DES TIREURS'!G$8:G$82,'FEUILLE D''INSCRIPTION'!V131) -> 0 | J131: =INDEX('LISTE DES TIREURS'!F$8:F$82,'FEUILLE D''INSCRIPTION'!V131) -> 0 | N131: =INDEX('LISTE DES TIREURS'!D$74:D$244,'FEUILLE D''INSCRIPTION'!S131) -> 0 | S131: 1 | T131: 1 | V131: 1
F133: =INDEX('LISTE DES TIREURS'!B$74:B$244,'FEUILLE D''INSCRIPTION'!S133) -> 0 | G133: =INDEX('LISTE DES TIREURS'!C$74:C$244,'FEUILLE D''INSCRIPTION'!S133) -> 0 | H133: =INDEX('FEUILLE D''INSCRIPTION'!U$7:U$15,'FEUILLE D''INSCRIPTION'!T133) -> 0 | I133: =INDEX('LISTE DES TIREURS'!G$8:G$82,'FEUILLE D''INSCRIPTION'!V133) -> 0 | J133: =INDEX('LISTE DES TIREURS'!F$8:F$82,'FEUILLE D''INSCRIPTION'!V133) -> 0 | K133: =IF(F133>0,$I$3,"") ->  | L133: =IF(F133>0,$F$2,"") ->  | M133: =IF(F133>0,$G$3,"") ->  | N133: =INDEX('LISTE DES TIREURS'!D$74:D$244,'FEUILLE D''INSCRIPTION'!S133) -> 0 | R133: =COUNTIFS($S$7:$S$181,S133) -> 36 | S133: 1 | T133: 1 | V133: 1
F134: =INDEX('LISTE DES TIREURS'!B$74:B$244,'FEUILLE D''INSCRIPTION'!S134) -> 0 | G134: =INDEX('LISTE DES TIREURS'!C$74:C$244,'FEUILLE D''INSCRIPTION'!S134) -> 0 | H134: =INDEX('FEUILLE D''INSCRIPTION'!U$7:U$15,'FEUILLE D''INSCRIPTION'!T134) -> 0 | I134: =INDEX('LISTE DES TIREURS'!G$8:G$82,'FEUILLE D''INSCRIPTION'!V134) -> 0 | J134: =INDEX('LISTE DES TIREURS'!F$8:F$82,'FEUILLE D''INSCRIPTION'!V134) -> 0 | N134: =INDEX('LISTE DES TIREURS'!D$74:D$244,'FEUILLE D''INSCRIPTION'!S134) -> 0 | R134: =COUNTIFS($S$7:$S$181,S134) -> 36 | S134: 1 | T134: 1 | V134: 1
F135: =INDEX('LISTE DES TIREURS'!B$74:B$244,'FEUILLE D''INSCRIPTION'!S135) -> 0 | G135: =INDEX('LISTE DES TIREURS'!C$74:C$244,'FEUILLE D''INSCRIPTION'!S135) -> 0 | H135: =INDEX('FEUILLE D''INSCRIPTION'!U$7:U$15,'FEUILLE D''INSCRIPTION'!T135) -> 0 | I135: =INDEX('LISTE DES TIREURS'!G$8:G$82,'FEUILLE D''INSCRIPTION'!V135) -> 0 | J135: =INDEX('LISTE DES TIREURS'!F$8:F$82,'FEUILLE D''INSCRIPTION'!V135) -> 0 | N135: =INDEX('LISTE DES TIREURS'!D$74:D$244,'FEUILLE D''INSCRIPTION'!S135) -> 0 | R135: =COUNTIFS($S$7:$S$181,S135) -> 36 | S135: 1 | T135: 1 | V135: 1
F136: =INDEX('LISTE DES TIREURS'!B$74:B$244,'FEUILLE D''INSCRIPTION'!S136) -> 0 | G136: =INDEX('LISTE DES TIREURS'!C$74:C$244,'FEUILLE D''INSCRIPTION'!S136) -> 0 | H136: =INDEX('FEUILLE D''INSCRIPTION'!U$7:U$15,'FEUILLE D''INSCRIPTION'!T136) -> 0 | I136: =INDEX('LISTE DES TIREURS'!G$8:G$82,'FEUILLE D''INSCRIPTION'!V136) -> 0 | J136: =INDEX('LISTE DES TIREURS'!F$8:F$82,'FEUILLE D''INSCRIPTION'!V136) -> 0 | N136: =INDEX('LISTE DES TIREURS'!D$74:D$244,'FEUILLE D''INSCRIPTION'!S136) -> 0 | R136: =IF(S136<=1,"",COUNTIFS($S$7:$S$181,S136)) ->  | S136: 1 | T136: 1 | V136: 1
F137: =INDEX('LISTE DES TIREURS'!B$74:B$244,'FEUILLE D''INSCRIPTION'!S137) -> 0 | G137: =INDEX('LISTE DES TIREURS'!C$74:C$244,'FEUILLE D''INSCRIPTION'!S137) -> 0 | H137: =INDEX('FEUILLE D''INSCRIPTION'!U$7:U$15,'FEUILLE D''INSCRIPTION'!T137) -> 0 | I137: =INDEX('LISTE DES TIREURS'!G$8:G$82,'FEUILLE D''INSCRIPTION'!V137) -> 0 | J137: =INDEX('LISTE DES TIREURS'!F$8:F$82,'FEUILLE D''INSCRIPTION'!V137) -> 0 | N137: =INDEX('LISTE DES TIREURS'!D$74:D$244,'FEUILLE D''INSCRIPTION'!S137) -> 0 | S137: 1 | T137: 1 | V137: 1
F139: =INDEX('LISTE DES TIREURS'!B$74:B$244,'FEUILLE D''INSCRIPTION'!S139) -> 0 | G139: =INDEX('LISTE DES TIREURS'!C$74:C$244,'FEUILLE D''INSCRIPTION'!S139) -> 0 | H139: =INDEX('FEUILLE D''INSCRIPTION'!U$7:U$15,'FEUILLE D''INSCRIPTION'!T139) -> 0 | I139: =INDEX('LISTE DES TIREURS'!G$8:G$82,'FEUILLE D''INSCRIPTION'!V139) -> 0 | J139: =INDEX('LISTE DES TIREURS'!F$8:F$82,'FEUILLE D''INSCRIPTION'!V139) -> 0 | K139: =IF(F139>0,$I$3,"") ->  | L139: =IF(F139>0,$F$2,"") ->  | M139: =IF(F139>0,$G$3,"") ->  | N139: =INDEX('LISTE DES TIREURS'!D$74:D$244,'FEUILLE D''INSCRIPTION'!S139) -> 0 | R139: =COUNTIFS($S$7:$S$181,S139) -> 36 | S139: 1 | T139: 1 | V139: 1
F140: =INDEX('LISTE DES TIREURS'!B$74:B$244,'FEUILLE D''INSCRIPTION'!S140) -> 0 | G140: =INDEX('LISTE DES TIREURS'!C$74:C$244,'FEUILLE D''INSCRIPTION'!S140) -> 0 | H140: =INDEX('FEUILLE D''INSCRIPTION'!U$7:U$15,'FEUILLE D''INSCRIPTION'!T140) -> 0 | I140: =INDEX('LISTE DES TIREURS'!G$8:G$82,'FEUILLE D''INSCRIPTION'!V140) -> 0 | J140: =INDEX('LISTE DES TIREURS'!F$8:F$82,'FEUILLE D''INSCRIPTION'!V140) -> 0 | N140: =INDEX('LISTE DES TIREURS'!D$74:D$244,'FEUILLE D''INSCRIPTION'!S140) -> 0 | R140: =COUNTIFS($S$7:$S$181,S140) -> 36 | S140: 1 | T140: 1 | V140: 1
F141: =INDEX('LISTE DES TIREURS'!B$74:B$244,'FEUILLE D''INSCRIPTION'!S141) -> 0 | G141: =INDEX('LISTE DES TIREURS'!C$74:C$244,'FEUILLE D''INSCRIPTION'!S141) -> 0 | H141: =INDEX('FEUILLE D''INSCRIPTION'!U$7:U$15,'FEUILLE D''INSCRIPTION'!T141) -> 0 | I141: =INDEX('LISTE DES TIREURS'!G$8:G$82,'FEUILLE D''INSCRIPTION'!V141) -> 0 | J141: =INDEX('LISTE DES TIREURS'!F$8:F$82,'FEUILLE D''INSCRIPTION'!V141) -> 0 | N141: =INDEX('LISTE DES TIREURS'!D$74:D$244,'FEUILLE D''INSCRIPTION'!S141) -> 0 | R141: =COUNTIFS($S$7:$S$181,S141) -> 36 | S141: 1 | T141: 1 | V141: 1
F142: =INDEX('LISTE DES TIREURS'!B$74:B$244,'FEUILLE D''INSCRIPTION'!S142) -> 0 | G142: =INDEX('LISTE DES TIREURS'!C$74:C$244,'FEUILLE D''INSCRIPTION'!S142) -> 0 | H142: =INDEX('FEUILLE D''INSCRIPTION'!U$7:U$15,'FEUILLE D''INSCRIPTION'!T142) -> 0 | I142: =INDEX('LISTE DES TIREURS'!G$8:G$82,'FEUILLE D''INSCRIPTION'!V142) -> 0 | J142: =INDEX('LISTE DES TIREURS'!F$8:F$82,'FEUILLE D''INSCRIPTION'!V142) -> 0 | N142: =INDEX('LISTE DES TIREURS'!D$74:D$244,'FEUILLE D''INSCRIPTION'!S142) -> 0 | R142: =IF(S142<=1,"",COUNTIFS($S$7:$S$181,S142)) ->  | S142: 1 | T142: 1 | V142: 1
F143: =INDEX('LISTE DES TIREURS'!B$74:B$244,'FEUILLE D''INSCRIPTION'!S143) -> 0 | G143: =INDEX('LISTE DES TIREURS'!C$74:C$244,'FEUILLE D''INSCRIPTION'!S143) -> 0 | H143: =INDEX('FEUILLE D''INSCRIPTION'!U$7:U$15,'FEUILLE D''INSCRIPTION'!T143) -> 0 | I143: =INDEX('LISTE DES TIREURS'!G$8:G$82,'FEUILLE D''INSCRIPTION'!V143) -> 0 | J143: =INDEX('LISTE DES TIREURS'!F$8:F$82,'FEUILLE D''INSCRIPTION'!V143) -> 0 | N143: =INDEX('LISTE DES TIREURS'!D$74:D$244,'FEUILLE D''INSCRIPTION'!S143) -> 0 | S143: 1 | T143: 1 | V143: 1
F145: =INDEX('LISTE DES TIREURS'!B$74:B$244,'FEUILLE D''INSCRIPTION'!S145) -> 0 | G145: =INDEX('LISTE DES TIREURS'!C$74:C$244,'FEUILLE D''INSCRIPTION'!S145) -> 0 | H145: =INDEX('FEUILLE D''INSCRIPTION'!U$7:U$15,'FEUILLE D''INSCRIPTION'!T145) -> 0 | I145: =INDEX('LISTE DES TIREURS'!G$8:G$82,'FEUILLE D''INSCRIPTION'!V145) -> 0 | J145: =INDEX('LISTE DES TIREURS'!F$8:F$82,'FEUILLE D''INSCRIPTION'!V145) -> 0 | K145: =IF(F145>0,$I$3,"") ->  | L145: =IF(F145>0,$F$2,"") ->  | M145: =IF(F145>0,$G$3,"") ->  | N145: =INDEX('LISTE DES TIREURS'!D$74:D$244,'FEUILLE D''INSCRIPTION'!S145) -> 0 | R145: =COUNTIFS($S$7:$S$181,S145) -> 36 | S145: 1 | T145: 1 | V145: 1
F146: =INDEX('LISTE DES TIREURS'!B$74:B$244,'FEUILLE D''INSCRIPTION'!S146) -> 0 | G146: =INDEX('LISTE DES TIREURS'!C$74:C$244,'FEUILLE D''INSCRIPTION'!S146) -> 0 | H146: =INDEX('FEUILLE D''INSCRIPTION'!U$7:U$15,'FEUILLE D''INSCRIPTION'!T146) -> 0 | I146: =INDEX('LISTE DES TIREURS'!G$8:G$82,'FEUILLE D''INSCRIPTION'!V146) -> 0 | J146: =INDEX('LISTE DES TIREURS'!F$8:F$82,'FEUILLE D''INSCRIPTION'!V146) -> 0 | N146: =INDEX('LISTE DES TIREURS'!D$74:D$244,'FEUILLE D''INSCRIPTION'!S146) -> 0 | R146: =COUNTIFS($S$7:$S$181,S146) -> 36 | S146: 1 | T146: 1 | V146: 1
F147: =INDEX('LISTE DES TIREURS'!B$74:B$244,'FEUILLE D''INSCRIPTION'!S147) -> 0 | G147: =INDEX('LISTE DES TIREURS'!C$74:C$244,'FEUILLE D''INSCRIPTION'!S147) -> 0 | H147: =INDEX('FEUILLE D''INSCRIPTION'!U$7:U$15,'FEUILLE D''INSCRIPTION'!T147) -> 0 | I147: =INDEX('LISTE DES TIREURS'!G$8:G$82,'FEUILLE D''INSCRIPTION'!V147) -> 0 | J147: =INDEX('LISTE DES TIREURS'!F$8:F$82,'FEUILLE D''INSCRIPTION'!V147) -> 0 | N147: =INDEX('LISTE DES TIREURS'!D$74:D$244,'FEUILLE D''INSCRIPTION'!S147) -> 0 | R147: =COUNTIFS($S$7:$S$181,S147) -> 36 | S147: 1 | T147: 1 | V147: 1
F148: =INDEX('LISTE DES TIREURS'!B$74:B$244,'FEUILLE D''INSCRIPTION'!S148) -> 0 | G148: =INDEX('LISTE DES TIREURS'!C$74:C$244,'FEUILLE D''INSCRIPTION'!S148) -> 0 | H148: =INDEX('FEUILLE D''INSCRIPTION'!U$7:U$15,'FEUILLE D''INSCRIPTION'!T148) -> 0 | I148: =INDEX('LISTE DES TIREURS'!G$8:G$82,'FEUILLE D''INSCRIPTION'!V148) -> 0 | J148: =INDEX('LISTE DES TIREURS'!F$8:F$82,'FEUILLE D''INSCRIPTION'!V148) -> 0 | N148: =INDEX('LISTE DES TIREURS'!D$74:D$244,'FEUILLE D''INSCRIPTION'!S148) -> 0 | R148: =IF(S148<=1,"",COUNTIFS($S$7:$S$181,S148)) ->  | S148: 1 | T148: 1 | V148: 1
F149: =INDEX('LISTE DES TIREURS'!B$74:B$244,'FEUILLE D''INSCRIPTION'!S149) -> 0 | G149: =INDEX('LISTE DES TIREURS'!C$74:C$244,'FEUILLE D''INSCRIPTION'!S149) -> 0 | H149: =INDEX('FEUILLE D''INSCRIPTION'!U$7:U$15,'FEUILLE D''INSCRIPTION'!T149) -> 0 | I149: =INDEX('LISTE DES TIREURS'!G$8:G$82,'FEUILLE D''INSCRIPTION'!V149) -> 0 | J149: =INDEX('LISTE DES TIREURS'!F$8:F$82,'FEUILLE D''INSCRIPTION'!V149) -> 0 | N149: =INDEX('LISTE DES TIREURS'!D$74:D$244,'FEUILLE D''INSCRIPTION'!S149) -> 0 | S149: 1 | T149: 1 | V149: 1
F151: =INDEX('LISTE DES TIREURS'!B$74:B$244,'FEUILLE D''INSCRIPTION'!S151) -> 0 | G151: =INDEX('LISTE DES TIREURS'!C$74:C$244,'FEUILLE D''INSCRIPTION'!S151) -> 0 | H151: =INDEX('FEUILLE D''INSCRIPTION'!U$7:U$15,'FEUILLE D''INSCRIPTION'!T151) -> 0 | I151: =INDEX('LISTE DES TIREURS'!G$8:G$82,'FEUILLE D''INSCRIPTION'!V151) -> 0 | J151: =INDEX('LISTE DES TIREURS'!F$8:F$82,'FEUILLE D''INSCRIPTION'!V151) -> 0 | K151: =IF(F151>0,$I$3,"") ->  | L151: =IF(F151>0,$F$2,"") ->  | M151: =IF(F151>0,$G$3,"") ->  | N151: =INDEX('LISTE DES TIREURS'!D$74:D$244,'FEUILLE D''INSCRIPTION'!S151) -> 0 | R151: =COUNTIFS($S$7:$S$181,S151) -> 36 | S151: 1 | T151: 1 | V151: 1
F152: =INDEX('LISTE DES TIREURS'!B$74:B$244,'FEUILLE D''INSCRIPTION'!S152) -> 0 | G152: =INDEX('LISTE DES TIREURS'!C$74:C$244,'FEUILLE D''INSCRIPTION'!S152) -> 0 | H152: =INDEX('FEUILLE D''INSCRIPTION'!U$7:U$15,'FEUILLE D''INSCRIPTION'!T152) -> 0 | I152: =INDEX('LISTE DES TIREURS'!G$8:G$82,'FEUILLE D''INSCRIPTION'!V152) -> 0 | J152: =INDEX('LISTE DES TIREURS'!F$8:F$82,'FEUILLE D''INSCRIPTION'!V152) -> 0 | N152: =INDEX('LISTE DES TIREURS'!D$74:D$244,'FEUILLE D''INSCRIPTION'!S152) -> 0 | R152: =COUNTIFS($S$7:$S$181,S152) -> 36 | S152: 1 | T152: 1 | V152: 1
F153: =INDEX('LISTE DES TIREURS'!B$74:B$244,'FEUILLE D''INSCRIPTION'!S153) -> 0 | G153: =INDEX('LISTE DES TIREURS'!C$74:C$244,'FEUILLE D''INSCRIPTION'!S153) -> 0 | H153: =INDEX('FEUILLE D''INSCRIPTION'!U$7:U$15,'FEUILLE D''INSCRIPTION'!T153) -> 0 | I153: =INDEX('LISTE DES TIREURS'!G$8:G$82,'FEUILLE D''INSCRIPTION'!V153) -> 0 | J153: =INDEX('LISTE DES TIREURS'!F$8:F$82,'FEUILLE D''INSCRIPTION'!V153) -> 0 | N153: =INDEX('LISTE DES TIREURS'!D$74:D$244,'FEUILLE D''INSCRIPTION'!S153) -> 0 | R153: =COUNTIFS($S$7:$S$181,S153) -> 36 | S153: 1 | T153: 1 | V153: 1
F154: =INDEX('LISTE DES TIREURS'!B$74:B$244,'FEUILLE D''INSCRIPTION'!S154) -> 0 | G154: =INDEX('LISTE DES TIREURS'!C$74:C$244,'FEUILLE D''INSCRIPTION'!S154) -> 0 | H154: =INDEX('FEUILLE D''INSCRIPTION'!U$7:U$15,'FEUILLE D''INSCRIPTION'!T154) -> 0 | I154: =INDEX('LISTE DES TIREURS'!G$8:G$82,'FEUILLE D''INSCRIPTION'!V154) -> 0 | J154: =INDEX('LISTE DES TIREURS'!F$8:F$82,'FEUILLE D''INSCRIPTION'!V154) -> 0 | N154: =INDEX('LISTE DES TIREURS'!D$74:D$244,'FEUILLE D''INSCRIPTION'!S154) -> 0 | R154: =IF(S154<=1,"",COUNTIFS($S$7:$S$181,S154)) ->  | S154: 1 | T154: 1 | V154: 1
F155: =INDEX('LISTE DES TIREURS'!B$74:B$244,'FEUILLE D''INSCRIPTION'!S155) -> 0 | G155: =INDEX('LISTE DES TIREURS'!C$74:C$244,'FEUILLE D''INSCRIPTION'!S155) -> 0 | H155: =INDEX('FEUILLE D''INSCRIPTION'!U$7:U$15,'FEUILLE D''INSCRIPTION'!T155) -> 0 | I155: =INDEX('LISTE DES TIREURS'!G$8:G$82,'FEUILLE D''INSCRIPTION'!V155) -> 0 | J155: =INDEX('LISTE DES TIREURS'!F$8:F$82,'FEUILLE D''INSCRIPTION'!V155) -> 0 | N155: =INDEX('LISTE DES TIREURS'!D$74:D$244,'FEUILLE D''INSCRIPTION'!S155) -> 0 | S155: 1 | T155: 1 | V155: 1
F157: =INDEX('LISTE DES TIREURS'!B$74:B$244,'FEUILLE D''INSCRIPTION'!S157) -> 0 | G157: =INDEX('LISTE DES TIREURS'!C$74:C$244,'FEUILLE D''INSCRIPTION'!S157) -> 0 | H157: =INDEX('FEUILLE D''INSCRIPTION'!U$7:U$15,'FEUILLE D''INSCRIPTION'!T157) -> 0 | I157: =INDEX('LISTE DES TIREURS'!G$8:G$82,'FEUILLE D''INSCRIPTION'!V157) -> 0 | J157: =INDEX('LISTE DES TIREURS'!F$8:F$82,'FEUILLE D''INSCRIPTION'!V157) -> 0 | K157: =IF(F157>0,$I$3,"") ->  | L157: =IF(F157>0,$F$2,"") ->  | M157: =IF(F157>0,$G$3,"") ->  | N157: =INDEX('LISTE DES TIREURS'!D$74:D$244,'FEUILLE D''INSCRIPTION'!S157) -> 0 | R157: =COUNTIFS($S$7:$S$181,S157) -> 36 | S157: 1 | T157: 1 | V157: 1
F158: =INDEX('LISTE DES TIREURS'!B$74:B$244,'FEUILLE D''INSCRIPTION'!S158) -> 0 | G158: =INDEX('LISTE DES TIREURS'!C$74:C$244,'FEUILLE D''INSCRIPTION'!S158) -> 0 | H158: =INDEX('FEUILLE D''INSCRIPTION'!U$7:U$15,'FEUILLE D''INSCRIPTION'!T158) -> 0 | I158: =INDEX('LISTE DES TIREURS'!G$8:G$82,'FEUILLE D''INSCRIPTION'!V158) -> 0 | J158: =INDEX('LISTE DES TIREURS'!F$8:F$82,'FEUILLE D''INSCRIPTION'!V158) -> 0 | N158: =INDEX('LISTE DES TIREURS'!D$74:D$244,'FEUILLE D''INSCRIPTION'!S158) -> 0 | R158: =COUNTIFS($S$7:$S$181,S158) -> 36 | S158: 1 | T158: 1 | V158: 1
F159: =INDEX('LISTE DES TIREURS'!B$74:B$244,'FEUILLE D''INSCRIPTION'!S159) -> 0 | G159: =INDEX('LISTE DES TIREURS'!C$74:C$244,'FEUILLE D''INSCRIPTION'!S159) -> 0 | H159: =INDEX('FEUILLE D''INSCRIPTION'!U$7:U$15,'FEUILLE D''INSCRIPTION'!T159) -> 0 | I159: =INDEX('LISTE DES TIREURS'!G$8:G$82,'FEUILLE D''INSCRIPTION'!V159) -> 0 | J159: =INDEX('LISTE DES TIREURS'!F$8:F$82,'FEUILLE D''INSCRIPTION'!V159) -> 0 | N159: =INDEX('LISTE DES TIREURS'!D$74:D$244,'FEUILLE D''INSCRIPTION'!S159) -> 0 | R159: =COUNTIFS($S$7:$S$181,S159) -> 36 | S159: 1 | T159: 1 | V159: 1
F160: =INDEX('LISTE DES TIREURS'!B$74:B$244,'FEUILLE D''INSCRIPTION'!S160) -> 0 | G160: =INDEX('LISTE DES TIREURS'!C$74:C$244,'FEUILLE D''INSCRIPTION'!S160) -> 0 | H160: =INDEX('FEUILLE D''INSCRIPTION'!U$7:U$15,'FEUILLE D''INSCRIPTION'!T160) -> 0 | I160: =INDEX('LISTE DES TIREURS'!G$8:G$82,'FEUILLE D''INSCRIPTION'!V160) -> 0 | J160: =INDEX('LISTE DES TIREURS'!F$8:F$82,'FEUILLE D''INSCRIPTION'!V160) -> 0 | N160: =INDEX('LISTE DES TIREURS'!D$74:D$244,'FEUILLE D''INSCRIPTION'!S160) -> 0 | R160: =IF(S160<=1,"",COUNTIFS($S$7:$S$181,S160)) ->  | S160: 1 | T160: 1 | V160: 1
F161: =INDEX('LISTE DES TIREURS'!B$74:B$244,'FEUILLE D''INSCRIPTION'!S161) -> 0 | G161: =INDEX('LISTE DES TIREURS'!C$74:C$244,'FEUILLE D''INSCRIPTION'!S161) -> 0 | H161: =INDEX('FEUILLE D''INSCRIPTION'!U$7:U$15,'FEUILLE D''INSCRIPTION'!T161) -> 0 | I161: =INDEX('LISTE DES TIREURS'!G$8:G$82,'FEUILLE D''INSCRIPTION'!V161) -> 0 | J161: =INDEX('LISTE DES TIREURS'!F$8:F$82,'FEUILLE D''INSCRIPTION'!V161) -> 0 | N161: =INDEX('LISTE DES TIREURS'!D$74:D$244,'FEUILLE D''INSCRIPTION'!S161) -> 0 | S161: 1 | T161: 1 | V161: 1
T561: 1
T661: 1
V1035: 2

Sheet MODE D'EMPLOI

Sheet Tireurs
A1: Nom | B1: Prénom | C1: Année | D1: Calibre | E1: Téléphone | F1: Natel | G1: Mail ou courrier | H1: 2017-08-23 | I1: 2017-08-30 | J1: 2017-09-01 | K1: seul
A2: Adam | B2: Olivier | C2: 1993 | D2: 5.6 | E2: - | F2: - | G2: mail | L2: =SUM(H2:K2) -> 0
A3: Akcoeltekin | B3: Namik | C3: 1979 | D3: 5.6 | E3: - | F3: - | G3: mail | L3: 0
A4: Akrout | B4: Samir | C4: 1974 | D4: 5.6 | E4: - | F4: - | G4: mail | L4: 0
A5: Altinier | B5: Benoit | C5: 1983 | D5: 5.6 | E5: - | F5: - | G5: mail | L5: 0
A6: Ammann | B6: Dora | C6: 1984 | D6: 5.6 | E6: - | F6: - | G6: mail | L6: 0
A7: Arias | B7: José | C7: 1971 | D7: 5.6 | E7: - | F7: - | G7: mail | L7: 0
A8: Ascensao Nunes Andrade | B8: Bruno Macel | C8: 1974 | D8: 5.6 | E8: - | F8: - | G8: courrier | L8: 0
A9: Aslan | B9: Yunus Emere | C9: 1996 | D9: 5.6 | E9: - | F9: - | G9: courrier | L9: 0
A10: Auderset | B10: Gregory | C10: 1993 | D10: 5.6 | E10: - | F10: - | G10: mail | L10: 0
A11: Baciu | B11: Adrian | C11: 1955 | D11: 5.6 | E11: - | F11: - | G11: courrier | L11: 0
A12: Barras | B12: Valentin | C12: 1996 | D12: 5.6 | E12: - | F12: - | L12: 0
A13: Barth | B13: Daniel | C13: 1962 | D13: 5.6 | E13: - | F13: 078 / 607 28 97 | L13: 0
A14: Basset | B14: Christian | C14: 1956 | D14: 5.6 | E14: - | F14: - | G14: courrier | L14: 0
A15: Baudois | B15: Julien | C15: 1985 | D15: 5.6 | E15: - | F15: 078 / 722 63 58 | G15: mail | L15: 0
A16: Beaud | B16: Claude | C16: 1957 | D16: 5.6 | E16: - | F16: - | G16: mail | L16: 0
A17: Benoit | B17: Jean-Romain | C17: 1970 | D17: 5.6 | G17: mail | L17: 0
A18: Berger | B18: Jean-Philippe | C18: 1975 | D18: 5.6 | E18: - | F18: - | G18: mail | L18: 0
A19: Blanc | B19: Marcel | C19: 1956 | D19: 5.6 | E19: - | F19: 079 / 614 67 91 | G19: mail | L19: 0
A20: Boichat | B20: Michel | C20: 1952 | D20: 5.6 | E20: - | F20: 079 / 259 35 06 | G20: mail | L20: 0
A21: Bonnet | B21: Julien | C21: 1984 | D21: 5.6 | E21: - | F21: - | G21: mail | L21: 0
A22: Boschung | B22: Elias | C22: 1988 | D22: 5.6 | E22: - | F22: - | G22: mail | L22: 0
A23: Brülhart | B23: Matthieu | C23: 1985 | D23: 5.6 | E23: - | F23: 079 / 547 98 29 | G23: mail | L23: 0
A24: Carrel | B24: Johann | C24: 1980 | D24: 5.6 | E24: - | F24: - | G24: mail | L24: 0
A25: Castro | B25: Paulo | C25: 1974 | D25: 5.6 | E25: - | F25: - | G25: courrier | L25: 0
A26: Cetinjanin | B26: Daniel | C26: 1984 | D26: 5.6 | E26: - | F26: 078 / 620 43 16 | G26: mail | L26: 0
A27: Chalabi | B27: David | C27: 1986 | D27: 5.6 | G27: courrier | L27: 0
A28: Colheo Moreira | B28: Helder Manuel | C28: 1986 | D28: 5.6 | G28: Courrier | L28: 0
A29: Corboz | B29: Gabriel | C29: 1986 | D29: 5.6 | E29: - | F29: - | G29: mail | L29: 0
A30: Currat | B30: Jean-Michel | C30: 1962 | D30: 5.6 | E30: - | F30: 079 / 408 55 45 | G30: mail | L30: 0
A31: Dabouz Mohamed | B31: Nazim | C31: 1982 | D31: 5.6 | E31: - | F31: - | G31: mail | L31: 0
A32: Daniel | B32: Yvon | D32: 5.6 | E32: - | F32: - | L32: 0
A33: De Almeida | B33: José | C33: 1973 | D33: 5.6 | E33: - | F33: - | L33: 0
A34: Delacombaz | B34: Maude | C34: 1989 | D34: 5.6 | E34: - | F34: 079 / 791 16 86 | G34: mail | L34: 0
A35: Delas | B35: Mathieu | C35: 1991 | D35: 5.6 | G35: mail | L35: 0
A36: Dobroes Texeira | B36: Nuno | C36: 1979 | D36: 5.6 | E36: - | F36: - | G36: courrier | L36: 0
A37: Doughty Davis | B37: Gregory | C37: 1957 | D37: 5.6 | G37: mail | L37: 0
A38: Dubey | B38: Vincent | C38: 1982 | D38: 5.6 | E38: - | F38: 076 / 433 53 51 | G38: courrier | L38: 0
A39: Dupont | B39: Michel | C39: 1969 | D39: 5.6 | E39: - | F39: - | G39: mail | L39: 0
A40: Egger | B40: Sylvain | C40: 1988 | D40: 5.6 | E40: - | F40: - | G40: mail | L40: 0
A41: Eliseev | B41: Oleg | C41: 1984 | D41: 5.6 | E41: - | F41: 076 / 822 18 47 | G41: mail | L41: 0
A42: Ferreira | B42: Jaime | C42: 1964 | D42: 5.6 | E42: - | F42: - | L42: 0
A43: Ferreira De Castro | B43: Paulo Jorge | C43: 1975 | D43: 5.6 | E43: - | F43: - | L43: 0
A44: Fichera | B44: Alessandro | C44: 1978 | D44: 5.6 | E44: - | F44: - | G44: mail | L44: 0
A45: Fongang Temgoua | B45: Alain | C45: 1974 | D45: 5.6 | E45: - | F45: - | G45: courrier | L45: 0
A46: Forrer | B46: Alex | C46: 1978 | D46: 5.6 | E46: - | F46: - | L46: 0
A47: Fromaget | B47: Raoul | C47: 1982 | D47: 5.6 | E47: - | F47: 079 / 345 93 91 | G47: mail | L47: 0
A48: Fuga | B48: Rexhep | C48: 1993 | D48: 5.6 | E48: - | F48: 079 / 347 93 61 | G48: courrier | L48: 0
A49: Gago Da Silva Cruz | B49: Rui Jorge | C49: 1973 | D49: 5.6 | E49: - | F49: - | G49: courrier | L49: 0
A50: Galland | B50: Gilles | C50: 1956 | D50: 5.6 | E50: - | F50: - | G50: mail | L50: 0
A51: Galland | B51: Maxime | C51: 1987 | D51: 5.6 | E51: - | F51: - | G51: mail | L51: 0
A52: Genoud | B52: Didier | C52: 1981 | D52: 5.6 | E52: - | F52: - | G52: mail | L52: 0
A53: Gloriant | B53: Antoine | C53: 1988 | D53: 5.6 | E53: - | F53: - | G53: courrier | L53: 0
A54: Goncalves Duarte | B54: Silvio Miguel | C54: 1980 | D54: 5.6 | E54: - | F54: - | G54: courrier | L54: 0
A55: Gonçalves Martins | B55: Joaquim | C55: 1979 | D55: 7.5 | E55: - | F55: - | L55: 0
A56: Grangier | B56: Pierre | C56: 1949 | D56: 5.6 | E56: 026 / 912 57 19 | F56: 079 / 232 65 48 | G56: pierre.grangier@websud.ch | L56: 0
A57: Heintz | B57: Simon | C57: 1987 | D57: 5.6 | E57: - | F57: - | G57: mail | L57: 0
A58: Heinzl | B58: Michael | C58: 1972 | D58: 5.6 | E58: - | F58: - | G58: mail | L58: 0
A59: Imperiale | B59: Filomene | C59: 1971 | D59: 5.6 | E59: - | F59: - | G59: mail | L59: 0
A60: John | B60: Maria | C60: 1986 | D60: 5.6 | E60: - | F60: - | G60: mail | L60: 0
A61: Karaoglan | B61: Mehmet | D61: 5.6 | E61: - | F61: - | G61: courrier | L61: 0
A62: Kehren | B62: Isabelle | C62: 1996 | D62: 5.6 | E62: - | F62: 079 / 945 07 97 | G62: mail | L62: 0
A63: Khenfar | B63: Amar | C63: 1975 | D63: 5.6 | E63: - | F63: - | G63: courrier | L63: 0
A64: Klein | B64: Thierry | C64: 1975 | D64: 5.6 | E64: - | F64: 079 / 845 33 93 | G64: courrier | L64: 0
A65: Kuenzli | B65: Cédric | C65: 1976 | D65: 5.6 | E65: - | F65: - | G65: mail | L65: 0
A66: Kurtaj | B66: Gazmen | C66: 1976 | D66: 5.6 | E66: - | F66: 078 / 605 63 56 | G66: mail | L66: =SUM(H66:K66) -> 0
A67: Leonard | B67: Damien | C67: 1993 | D67: 5.6 | E67: - | F67: - | G67: mail | L67: 0
A68: Marchon | B68: Philippe | C68: 1962 | D68: 5.6 | E68: - | F68: - | G68: mail | L68: 0
A69: Martins | B69: José | C69: 1973 | D69: 5.6 | E69: - | F69: - | G69: courrier | L69: 0
A70: Martins Marques | B70: Filipe | C70: 1986 | D70: 5.6 | E70: - | F70: 076 / 697 51 20 | G70: courrier | L70: 0
A71: Meige | B71: Timothée | C71: 1987 | D71: 5.6 | E71: - | F71: 079 / 725 39 85 | G71: courrier | L71: 0
A72: Menoud | B72: Sonja | C72: 1952 | D72: 5.6 | E72: - | F72: 079 / 544 46 50 | G72: sms | L72: 0
A73: Menoud | B73: Sébastien | C73: 1974 | D73: 5.6 | E73: - | F73: 079 / 206 93 08 | G73: mail | L73: 0
A74: Moinet | B74: Léo | C74: 1994 | D74: 5.6 | E74: - | F74: 079 / 456 78 06 | G74: courrier | L74: 0
A75: Monney | B75: Eric | C75: 1995 | D75: 5.6 | E75: - | F75: 077 / 402 85 66 | G75: courrier | L75: 0
A76: Morisset | B76: Alexandre | C76: 1974 | D76: 7.5 | E76: - | F76: 079 / 418 02 91 | G76: mail | L76: 0
A77: Moura | B77: Olivier | C77: 1965 | D77: 5.6 | G77: Courrier | L77: 0
A78: Mulot | B78: Gwladys | C78: 1991 | D78: 5.6 | E78: - | F78: - | G78: mail | L78: 0
A79: Njoh | B79: Jean-Robert | C79: 1980 | D79: 5.6 | E79: - | F79: 079 / 746 07 40 | G79: courrier | L79: 0
A80: Nuredini | B80: Driton | C80: 1990 | D80: 5.6 | E80: - | F80: 079 / 391 23 42 | G80: courrier | L80: 0
A81: Pacchiana | B81: Alexis | C81: 1960 | D81: 5.6 | E81: - | F81: 076 / 721 80 95 | G81: courrier | L81: 0
A82: Pauchard | B82: Bernard | C82: 1990 | D82: 5.6 | E82: - | F82: - | G82: mail | L82: 0
A83: Pereira Dias | B83: Carlos Manuel | C83: 1980 | D83: 5.6 | E83: - | F83: - | L83: 0
A84: Petitjean | B84: Brice | C84: 1990 | D84: 5.6 | E84: - | F84: - | G84: mail | L84: 0
A85: Picard | B85: Michael | C85: 1989 | D85: 5.6 | E85: - | F85: - | G85: mail | L85: 0
A86: Piller | B86: Stéphane | C86: 1979 | D86: 5.6 | E86: - | F86: 079 / 755 73 67 | G86: mail | L86: 0
A87: Progin | B87: Jérémy | C87: 1989 | D87: 5.6 | E87: - | F87: - | L87: 0
A88: Puran | B88: Bakir | C88: 1980 | D88: 5.6 | E88: - | F88: - | G88: mail | L88: 0
A89: Python | B89: Roland | C89: 1974 | D89: 5.6 | E89: - | F89: - | G89: mail | L89: 0
A90: Pythoud | B90: Pascal | C90: 1977 | D90: 5.6 | E90: - | F90: 079 / 750 68 04 | G90: mail | L90: 0
A91: Raboud | B91: Claudine | C91: 1981 | D91: 5.6 | E91: - | F91: 078 / 714 88 59 | G91: mail | L91: 0
A92: Reibel | B92: Pierre-Vincent | C92: 1980 | D92: 5.6 | E92: - | F92: - | L92: 0
A93: Rodriges Cardoso | B93: Mauro Alfonso | D93: 5.6 | E93: - | F93: - | L93: 0
A94: Roux | B94: Stefan | C94: 1964 | D94: 7.5 | E94: - | F94: - | G94: mail | L94: 0
A95: Sabathie | B95: Cyrille | C95: 1984 | D95: 5.6 | E95: - | F95: - | G95: mail | L95: 0
A96: Scheiwe | B96: Clemens | C96: 1990 | D96: 5.6 | E96: - | F96: - | G96: mail | L96: 0
A97: Schmit | B97: Bruno | C97: 1978 | D97: 5.6 | E97: - | F97: - | G97: mail | L97: 0
A98: Schnarrenberger | B98: Elio | C98: 1991 | D98: 5.6 | G98: mail | L98: 0
A99: Soulier | B99: Pierre | C99: 1989 | D99: 5.6 | E99: - | F99: - | G99: mail | L99: 0
A100: Spinelli | B100: Sophie | C100: 1980 | D100: 5.6 | E100: - | F100: - | G100: mail | L100: 0
A101: Stehlin | B101: Mathieu | C101: 1994 | D101: 5.6 | E101: - | F101: - | G101: courrier | L101: 0
A102: Stevanovic | B102: Sladjan | C102: 1983 | D102: 5.6 | E102: - | F102: - | L102: 0
A103: Tercier | B103: Novella | E103: - | F103: - | G103: mail | L103: 0
A104: Texeira | B104: Victor | C104: 1985 | D104: 5.6 | E104: - | F104: - | G104: courrier | L104: 0
A105: Touchefeu | B105: Thibaut | C105: 1986 | D105: 5.6 | E105: - | F105: - | L105: 0
A106: Turrian | B106: Jean-Daniel | C106: 1988 | D106: 5.6 | E106: - | F106: - | G106: courrier | L106: 0
A107: Tushi | B107: Bekim | C107: 1986 | D107: 5.6 | E107: - | F107: 076 / 386 63 03 | G107: courrier | L107: 0
A108: Ünalan | B108: Ümit | C108: 1981 | D108: 5.6 | E108: - | F108: 078 / 862 52 76 | G108: mail | L108: 0
A109: Utz | B109: Martial | C109: 1971 | D109: 5.6 | E109: - | F109: - | G109: mail | L109: 0
A110: Videira | B110: Luis | C110: 1989 | D110: 5.6 | E110: - | F110: - | G110: courrier | L110: 0
A111: Vonlanthen | B111: Béat | C111: 1983 | D111: 5.6 | E111: - | F111: 079 / 752 88 67 | G111: mail | L111: 0
A112: Wesemann | B112: Knut | C112: 1985 | D112: 5.6 | E112: - | F112: - | G112: mail | L112: 0
A113: Winkler | B113: Andreas | C113: 1982 | D113: 5.6 | E113: - | F113: - | G113: mail | L113: 0
A114: Winkworth | B114: James | C114: 1996 | D114: 5.6 | G114: Courrier | L114: 0
A115: Wyssmueller | B115: Alain | C115: 1992 | D115: 5.6 | E115: - | F115: 077 / 420 36 30 | G115: mail | L115: 0
A116: Yardimci | B116: Bulent | C116: 1979 | D116: 5.6 | E116: - | F116: - | L116: 0
A117: Zbinden | B117: Carole | C117: 1979 | D117: 5.6 | E117: - | F117: - | G117: mail | L117: 0
A118: Vielle | B118: Vincent | C118: 1992 | D118: 5.6 | G118: mail | L118: 0
A119: Li | B119: Zhi | C119: 1989 | D119: 5.6 | G119: mail | L119: 0
A120: Zuendorf | B120: Eckehard | C120: 1970 | D120: 5.6 | G120: mail | L120: =SUM(H120:K120) -> 0
L121: =SUM(H121:K121) -> 0
H122: =SUM(H2:H121) -> 0 | I122: =SUM(I2:I121) -> 0 | J122: 0 | K122: 0 | L122: =SUM(L2:L121) -> 0
K123: =SUM(H122:K122) -> 0
E125: Nbre: | F125: Coût:
A126: Cotisation annuelle par entreprise: | D126: 30 | E126: 1 | F126: =SUM(D126*E126) -> 30
A128: Paritcipation par tireur | D128: 30 | E128: 78 | F128: =SUM(D128*E128) -> 2340
A129: Total: | F129: =SUM(F126+F128) -> 2370
A132: Bulle, le 24.07.2017
A134: S. Menoud
